Workbook

Sheet Allgemeine Formeln
B1: =D4 -> 10
B2: =D5 -> 50
B3: =D10 -> 2016-01-14
B4: Geographische Länge | D4: 10
B5: Geographische Breite | D5: 50
B7: JD Anfang^0 | D7: 2000-01-01
B8: JD Anfang^12 | D8: 2000-01-01T06:00:00 | E8: =ASIN(0.4) -> 0.4115168461 | F8: =_xludf.asin(0.4) -> 0.4115168461
B9: Gesuchte Zeit | D9: =F11 -> 15:38:30
B10: Gesuchtes Datum | D10: 2016-01-14 | F10: 03:00:00 | G10: 4551
B11: gesuchtes Datum | D11: =D10+D9 -> 2016-01-14T15:38:30 | F11: =F10+G10*10/86400 -> 15:38:30
B12: JD Tage | D12: =D11-D7 -> 5857.651736
B13: JD-0 | D13: =2451544.5+D11-D7 -> 2457402.152 | E13: =JulianDatum_0(D7,D8,D10,D9) -> 2457402.152
B14: JD_12 | D14: =2451544.5+D11-D8 -> 2457401.902 | E14: =JulianDatum_12(D7,D8,D10,D9) -> 2457401.902
D15: 2453953.25
B16: Zeitvariable n | D16: =D13-2451545 -> 5857.151736 | E16: =Zeitvariable_n(D7,D8,D10,D9) -> 5857.151736
B17: ekliptikale Länge L | D17: =G17-ROUNDDOWN(G17/360,0)*360 -> 293.5463801 | E17: =ekliptikale_laenge(D7,D8,D10,D9) -> 293.5463801 | G17: =280.46 + 0.9856474*D16 -> 6053.54638
B18: mittlere Anomalie | D18: =G18-ROUNDDOWN(G18/360,0)*360 -> 10.33850826 | E18: =mittlere_anomalie(D7,D8,D10,D9) -> 10.33850826 | G18: =357.528 + 0.9856003*D16 -> 6130.338508
B19: Exzentrizität | D19: 0.0167
E21: =ATAN((COS(RADIANS(D24))*SIN(RADIANS(D23)))/(G25)) -> -1.120906493
B23: ekliptikale Länge | D23: =G23-ROUNDDOWN(G23/360,0)*360 -> 293.897104 | E23: =ekliptikale_l_sun(D7,D8,D10,D9) -> 293.897104 | G23: =G17+1.915*SIN(RADIANS(G18))+0.01997*SIN(RADIANS(2*G18)) -> 6053.897104
B24: Schiefe der Ekliptik | D24: =23.439-0.0000004*D16 -> 23.43665714 | E24: =schiefe_ekliptik(D7,D8,D10,D9) -> 23.43665714
B25: Rektaszension | D25: =DEGREES(ATAN((COS(RADIANS(D24))*SIN(RADIANS(D23)))/(G25)))+IF(G25<0,180,0) -> -64.22321126 | E25: =rektaszension(D7,D8,D10,D9) -> -64.22321126 | G25: =COS(RADIANS(D23)) -> 0.4050953754
B26: Deklination | D26: =DEGREES(ASIN(SIN(RADIANS(D24))*SIN(RADIANS(D23)))) -> -21.32384353 | E26: =deklination(D7,D8,D10,D9) -> -21.32384353
B28: T_0 | D28: =(D14-2451545)/36525 -> 0.1603532303 | E28: =Zeitpunkt_T0(D7,D8,D10,D9) -> 0.1603532303
B29: mittlere Sternzeit | D29: =G29-(ROUNDDOWN(G29/24,0)*24) -> 23.23785477 | E29: =m_sternzeit(D7,D8,D10,D9) -> 23.23785477 | G29: =6.697376+2400.05134*D28+1.002738*D9*24 -> 407.2378548
B30: Greenwich-Stundenwinkel des Frühlingspunkts | D30: =D29*15 -> 348.5678215 | E30: =g_Stundenwinkel(D7,D8,D10,D9) -> 348.5678215
B31: Stundenwinkel des Frühlingspunkts | D31: =D30+D4 -> 358.5678215 | E31: =stundenwinkel_f(D7,D8,D10,D9,D4) -> 358.5678215
B32: Stundenwinkel Sonne | D32: =D31-D25 -> 422.7910327 | E32: =stundenwinkel_s(D7,D8,D10,D9,D4) -> 422.7910327 | I32: =COS(RADIANS(D32)) -> 0.4572371224
B34: Azimut | D34: =IF(H34<0,G34+180,G34)-360 -> -304.0581398 | E34: =azimut(D7,D8,D10,D9,D4,D5) -> 55.94186025 | G34: =DEGREES(ATAN((SIN(RADIANS(D32)))/(H34))) -> 55.94186025 | H34: =COS(RADIANS(D32))*SIN(RADIANS(D5))-TAN(RADIANS(D26))*COS(RADIANS(D5)) -> 0.6011845801
B35: Höhenwinkel | D35: =DEGREES(ASIN(COS(RADIANS(D26))*COS(RADIANS(D32))*COS(RADIANS(D5))+SIN(RADIANS(D26))*SIN(RADIANS(D5)))) -> -0.2737632769 | E35: =hoehenwinkel(D7,D8,D10,D9,D4,D5) -> -0.2737632769
B36: Refraktion | D36: =1.02/(TAN(RADIANS(D35+10.3/(D35+5.11)))) -> 31.47710594 | E36: =refraktion(D7,D8,D10,D9,D4,D5) -> 31.47710594
B37: refraktionsbehaftete Höhe | D37: =D35+D36/60 -> 0.2508551555 | E37: =refraktion_h(D7,D8,D10,D9,D4,D5) -> 0.2508551555
B39: E_max x | C39: =H3*D39*E39 -> 0 | D39: =E_max_y(D7,D8,D10,D9,D4,D5,H1) -> 0.004378234421 | E39: =E_max_x(D7,D8,D10,D9,D4,D5,H2) -> 0.5600338649

Sheet Einzelübersicht Tag
B2: Längengrad | C2: Breitengrad | D2: Dachschräge | E2: Ausrichtung | F2: Anlagenleistung | G2: Anzahl Module | H2: Modulleistung | I2: Wirkungsgrad | J2: Dachfläche | K2: Ertrag
A3: Bamberg | B3: 10.582395 | C3: 49.902868 | D3: 30 | E3: 39 | F3: 9.975 | G3: 35 | H3: =F3/G3 -> 0.285 | I3: =100*H3/1.6/100 -> 0.178125 | J3: =G3*1.6 -> 56 | K3: =SUM(E136:E1061)/60 -> 32.50131187
A4: Nürnberg | B4: 11.5745597 | C4: 48.1367898 | D4: 30 | E4: 39 | F4: 9.975 | G4: 35 | H4: =F4/G4 -> 0.285 | I4: =100*H4/1.6/100 -> 0.178125 | J4: =G4*1.6 -> 56 | K4: =SUM(I136:I1061)/60 -> 33.98744239
A8: JD Anfang^0 | B8: 2000-01-01
A9: JD Anfang^12 | B9: 2000-01-01T06:00:00
A10: Datum | B10: 2023-02-21
A11: Zeitversatz | B11: 1
A13: =A3 -> Bamberg | G13: =A4 -> Nürnberg
A14: Uhrzeit | C14: Azimut | D14: Sonnenstand | E14: Emax | G14: Azimut | H14: Sonnenstand | I14: Emax
A16: 04:00:00 | B16: =A16+3600*$B$11/86400 -> 05:00:00 | C16: =azimut($B$8,$B$9,$B$10,A16,$B$3,$C$3) -> -100.8456463 | D16: =refraktion_h($B$8,$B$9,$B$10,A16,$B$3,$C$3) -> -22.87321374 | E16: =$F$3*E_max_y($B$8,$B$9,$B$10,A16,$B$3,$C$3,$D$3)*E_max_x($B$8,$B$9,$B$10,A16,$B$3,$C$3,$E$3)*IG($B$8,$B$9,$B$10,A16,$B$3,$C$3,$E$3)/1000 -> 0 | G16: =azimut($B$8,$B$9,$B$10,A16,$B$4,$C$4) -> -99.32267037 | H16: =refraktion_h($B$8,$B$9,$B$10,A16,$B$4,$C$4) -> -22.54237919 | I16: =$F$4*E_max_y($B$8,$B$9,$B$10,A16,$B$4,$C$4,$D$4)*E_max_x($B$8,$B$9,$B$10,A16,$B$4,$C$4,$E$4)*IG($B$8,$B$9,$B$10,A16,$B$4,$C$4,$E$4)/1000 -> 0
A17: =A16+60/86400 -> 04:01:00 | B17: 05:01:00 | C17: -100.6414191 | D17: -22.714668 | E17: =$F$3*E_max_y($B$8,$B$9,$B$10,A17,$B$3,$C$3,$D$3)*E_max_x($B$8,$B$9,$B$10,A17,$B$3,$C$3,$E$3)*IG($B$8,$B$9,$B$10,A17,$B$3,$C$3,$E$3)/1000 -> 0 | G17: -99.12507808 | H17: -22.37735803 | I17: =$F$4*E_max_y($B$8,$B$9,$B$10,A17,$B$4,$C$4,$D$4)*E_max_x($B$8,$B$9,$B$10,A17,$B$4,$C$4,$E$4)*IG($B$8,$B$9,$B$10,A17,$B$4,$C$4,$E$4)/1000 -> 0
A18: 04:02:00 | B18: 05:02:00 | C18: -100.437525 | D18: -22.5560198 | E18: =$F$3*E_max_y($B$8,$B$9,$B$10,A18,$B$3,$C$3,$D$3)*E_max_x($B$8,$B$9,$B$10,A18,$B$3,$C$3,$E$3)*IG($B$8,$B$9,$B$10,A18,$B$3,$C$3,$E$3)/1000 -> 0 | G18: -98.92780907 | H18: -22.21224959 | I18: =$F$4*E_max_y($B$8,$B$9,$B$10,A18,$B$4,$C$4,$D$4)*E_max_x($B$8,$B$9,$B$10,A18,$B$4,$C$4,$E$4)*IG($B$8,$B$9,$B$10,A18,$B$4,$C$4,$E$4)/1000 -> 0
A19: 04:03:00 | B19: 05:03:00 | C19: -100.2339601 | D19: -22.39727139 | E19: =$F$3*E_max_y($B$8,$B$9,$B$10,A19,$B$3,$C$3,$D$3)*E_max_x($B$8,$B$9,$B$10,A19,$B$3,$C$3,$E$3)*IG($B$8,$B$9,$B$10,A19,$B$3,$C$3,$E$3)/1000 -> 0 | G19: -98.7308591 | H19: -22.04705604 | I19: =$F$4*E_max_y($B$8,$B$9,$B$10,A19,$B$4,$C$4,$D$4)*E_max_x($B$8,$B$9,$B$10,A19,$B$4,$C$4,$E$4)*IG($B$8,$B$9,$B$10,A19,$B$4,$C$4,$E$4)/1000 -> 0
A20: 04:04:00 | B20: 05:04:00 | C20: -100.0307202 | D20: -22.23842501 | E20: =$F$3*E_max_y($B$8,$B$9,$B$10,A20,$B$3,$C$3,$D$3)*E_max_x($B$8,$B$9,$B$10,A20,$B$3,$C$3,$E$3)*IG($B$8,$B$9,$B$10,A20,$B$3,$C$3,$E$3)/1000 -> 0 | G20: -98.53422394 | H20: -21.88177956 | I20: =$F$4*E_max_y($B$8,$B$9,$B$10,A20,$B$4,$C$4,$D$4)*E_max_x($B$8,$B$9,$B$10,A20,$B$4,$C$4,$E$4)*IG($B$8,$B$9,$B$10,A20,$B$4,$C$4,$E$4)/1000 -> 0
A21: 04:05:00 | B21: 05:05:00 | C21: -99.82780137 | D21: -22.07948287 | E21: =$F$3*E_max_y($B$8,$B$9,$B$10,A21,$B$3,$C$3,$D$3)*E_max_x($B$8,$B$9,$B$10,A21,$B$3,$C$3,$E$3)*IG($B$8,$B$9,$B$10,A21,$B$3,$C$3,$E$3)/1000 -> 0 | G21: -98.33789938 | H21: -21.7164223 | I21: =$F$4*E_max_y($B$8,$B$9,$B$10,A21,$B$4,$C$4,$D$4)*E_max_x($B$8,$B$9,$B$10,A21,$B$4,$C$4,$E$4)*IG($B$8,$B$9,$B$10,A21,$B$4,$C$4,$E$4)/1000 -> 0
A22: 04:06:00 | B22: 05:06:00 | C22: -99.62519957 | D22: -21.9204472 | E22: =$F$3*E_max_y($B$8,$B$9,$B$10,A22,$B$3,$C$3,$D$3)*E_max_x($B$8,$B$9,$B$10,A22,$B$3,$C$3,$E$3)*IG($B$8,$B$9,$B$10,A22,$B$3,$C$3,$E$3)/1000 -> 0 | G22: -98.14188122 | H22: -21.55098642 | I22: =$F$4*E_max_y($B$8,$B$9,$B$10,A22,$B$4,$C$4,$D$4)*E_max_x($B$8,$B$9,$B$10,A22,$B$4,$C$4,$E$4)*IG($B$8,$B$9,$B$10,A22,$B$4,$C$4,$E$4)/1000 -> 0
A23: 04:07:00 | B23: 05:07:00 | C23: -99.42291079 | D23: -21.76132021 | E23: =$F$3*E_max_y($B$8,$B$9,$B$10,A23,$B$3,$C$3,$D$3)*E_max_x($B$8,$B$9,$B$10,A23,$B$3,$C$3,$E$3)*IG($B$8,$B$9,$B$10,A23,$B$3,$C$3,$E$3)/1000 -> 0 | G23: -97.9461653 | H23: -21.38547407 | I23: =$F$4*E_max_y($B$8,$B$9,$B$10,A23,$B$4,$C$4,$D$4)*E_max_x($B$8,$B$9,$B$10,A23,$B$4,$C$4,$E$4)*IG($B$8,$B$9,$B$10,A23,$B$4,$C$4,$E$4)/1000 -> 0
A24: 04:08:00 | B24: 05:08:00 | C24: -99.22093105 | D24: -21.60210409 | E24: =$F$3*E_max_y($B$8,$B$9,$B$10,A24,$B$3,$C$3,$D$3)*E_max_x($B$8,$B$9,$B$10,A24,$B$3,$C$3,$E$3)*IG($B$8,$B$9,$B$10,A24,$B$3,$C$3,$E$3)/1000 -> 0 | G24: -97.75074745 | H24: -21.21988737 | I24: =$F$4*E_max_y($B$8,$B$9,$B$10,A24,$B$4,$C$4,$D$4)*E_max_x($B$8,$B$9,$B$10,A24,$B$4,$C$4,$E$4)*IG($B$8,$B$9,$B$10,A24,$B$4,$C$4,$E$4)/1000 -> 0
A25: 04:09:00 | B25: 05:09:00 | C25: -99.01925638 | D25: -21.44280103 | E25: =$F$3*E_max_y($B$8,$B$9,$B$10,A25,$B$3,$C$3,$D$3)*E_max_x($B$8,$B$9,$B$10,A25,$B$3,$C$3,$E$3)*IG($B$8,$B$9,$B$10,A25,$B$3,$C$3,$E$3)/1000 -> 0 | G25: -97.55562355 | H25: -21.05422847 | I25: =$F$4*E_max_y($B$8,$B$9,$B$10,A25,$B$4,$C$4,$D$4)*E_max_x($B$8,$B$9,$B$10,A25,$B$4,$C$4,$E$4)*IG($B$8,$B$9,$B$10,A25,$B$4,$C$4,$E$4)/1000 -> 0
A26: 04:10:00 | B26: 05:10:00 | C26: -98.81788283 | D26: -21.28341322 | E26: =$F$3*E_max_y($B$8,$B$9,$B$10,A26,$B$3,$C$3,$D$3)*E_max_x($B$8,$B$9,$B$10,A26,$B$3,$C$3,$E$3)*IG($B$8,$B$9,$B$10,A26,$B$3,$C$3,$E$3)/1000 -> 0 | G26: -97.36078948 | H26: -20.88849947 | I26: =$F$4*E_max_y($B$8,$B$9,$B$10,A26,$B$4,$C$4,$D$4)*E_max_x($B$8,$B$9,$B$10,A26,$B$4,$C$4,$E$4)*IG($B$8,$B$9,$B$10,A26,$B$4,$C$4,$E$4)/1000 -> 0
A27: 04:11:00 | B27: 05:11:00 | C27: -98.61680647 | D27: -21.12394283 | E27: =$F$3*E_max_y($B$8,$B$9,$B$10,A27,$B$3,$C$3,$D$3)*E_max_x($B$8,$B$9,$B$10,A27,$B$3,$C$3,$E$3)*IG($B$8,$B$9,$B$10,A27,$B$3,$C$3,$E$3)/1000 -> 0 | G27: -97.16624113 | H27: -20.72270249 | I27: =$F$4*E_max_y($B$8,$B$9,$B$10,A27,$B$4,$C$4,$D$4)*E_max_x($B$8,$B$9,$B$10,A27,$B$4,$C$4,$E$4)*IG($B$8,$B$9,$B$10,A27,$B$4,$C$4,$E$4)/1000 -> 0
A28: 04:12:00 | B28: 05:12:00 | C28: -98.41602336 | D28: -20.96439203 | E28: =$F$3*E_max_y($B$8,$B$9,$B$10,A28,$B$3,$C$3,$D$3)*E_max_x($B$8,$B$9,$B$10,A28,$B$3,$C$3,$E$3)*IG($B$8,$B$9,$B$10,A28,$B$3,$C$3,$E$3)/1000 -> 0 | G28: -96.97197443 | H28: -20.55683965 | I28: =$F$4*E_max_y($B$8,$B$9,$B$10,A28,$B$4,$C$4,$D$4)*E_max_x($B$8,$B$9,$B$10,A28,$B$4,$C$4,$E$4)*IG($B$8,$B$9,$B$10,A28,$B$4,$C$4,$E$4)/1000 -> 0
A29: 04:13:00 | B29: 05:13:00 | C29: -98.21552961 | D29: -20.80476298 | E29: =$F$3*E_max_y($B$8,$B$9,$B$10,A29,$B$3,$C$3,$D$3)*E_max_x($B$8,$B$9,$B$10,A29,$B$3,$C$3,$E$3)*IG($B$8,$B$9,$B$10,A29,$B$3,$C$3,$E$3)/1000 -> 0 | G29: -96.7779853 | H29: -20.39091302 | I29: =$F$4*E_max_y($B$8,$B$9,$B$10,A29,$B$4,$C$4,$D$4)*E_max_x($B$8,$B$9,$B$10,A29,$B$4,$C$4,$E$4)*IG($B$8,$B$9,$B$10,A29,$B$4,$C$4,$E$4)/1000 -> 0
A30: 04:14:00 | B30: 05:14:00 | C30: -98.01532131 | D30: -20.64505782 | E30: =$F$3*E_max_y($B$8,$B$9,$B$10,A30,$B$3,$C$3,$D$3)*E_max_x($B$8,$B$9,$B$10,A30,$B$3,$C$3,$E$3)*IG($B$8,$B$9,$B$10,A30,$B$3,$C$3,$E$3)/1000 -> 0 | G30: -96.58426971 | H30: -20.22492472 | I30: =$F$4*E_max_y($B$8,$B$9,$B$10,A30,$B$4,$C$4,$D$4)*E_max_x($B$8,$B$9,$B$10,A30,$B$4,$C$4,$E$4)*IG($B$8,$B$9,$B$10,A30,$B$4,$C$4,$E$4)/1000 -> 0
A31: 04:15:00 | B31: 05:15:00 | C31: -97.8153946 | D31: -20.48527871 | E31: =$F$3*E_max_y($B$8,$B$9,$B$10,A31,$B$3,$C$3,$D$3)*E_max_x($B$8,$B$9,$B$10,A31,$B$3,$C$3,$E$3)*IG($B$8,$B$9,$B$10,A31,$B$3,$C$3,$E$3)/1000 -> 0 | G31: -96.39082363 | H31: -20.05887682 | I31: =$F$4*E_max_y($B$8,$B$9,$B$10,A31,$B$4,$C$4,$D$4)*E_max_x($B$8,$B$9,$B$10,A31,$B$4,$C$4,$E$4)*IG($B$8,$B$9,$B$10,A31,$B$4,$C$4,$E$4)/1000 -> 0
A32: 04:16:00 | B32: 05:16:00 | C32: -97.61574561 | D32: -20.32542778 | E32: =$F$3*E_max_y($B$8,$B$9,$B$10,A32,$B$3,$C$3,$D$3)*E_max_x($B$8,$B$9,$B$10,A32,$B$3,$C$3,$E$3)*IG($B$8,$B$9,$B$10,A32,$B$3,$C$3,$E$3)/1000 -> 0 | G32: -96.19764304 | H32: -19.89277139 | I32: =$F$4*E_max_y($B$8,$B$9,$B$10,A32,$B$4,$C$4,$D$4)*E_max_x($B$8,$B$9,$B$10,A32,$B$4,$C$4,$E$4)*IG($B$8,$B$9,$B$10,A32,$B$4,$C$4,$E$4)/1000 -> 0
A33: 04:17:00 | B33: 05:17:00 | C33: -97.41637049 | D33: -20.16550715 | E33: =$F$3*E_max_y($B$8,$B$9,$B$10,A33,$B$3,$C$3,$D$3)*E_max_x($B$8,$B$9,$B$10,A33,$B$3,$C$3,$E$3)*IG($B$8,$B$9,$B$10,A33,$B$3,$C$3,$E$3)/1000 -> 0 | G33: -96.00472395 | H33: -19.72661052 | I33: =$F$4*E_max_y($B$8,$B$9,$B$10,A33,$B$4,$C$4,$D$4)*E_max_x($B$8,$B$9,$B$10,A33,$B$4,$C$4,$E$4)*IG($B$8,$B$9,$B$10,A33,$B$4,$C$4,$E$4)/1000 -> 0
A34: 04:18:00 | B34: 05:18:00 | C34: -97.21726542 | D34: -20.00551896 | E34: =$F$3*E_max_y($B$8,$B$9,$B$10,A34,$B$3,$C$3,$D$3)*E_max_x($B$8,$B$9,$B$10,A34,$B$3,$C$3,$E$3)*IG($B$8,$B$9,$B$10,A34,$B$3,$C$3,$E$3)/1000 -> 0 | G34: -95.81206238 | H34: -19.56039626 | I34: =$F$4*E_max_y($B$8,$B$9,$B$10,A34,$B$4,$C$4,$D$4)*E_max_x($B$8,$B$9,$B$10,A34,$B$4,$C$4,$E$4)*IG($B$8,$B$9,$B$10,A34,$B$4,$C$4,$E$4)/1000 -> 0
A35: 04:19:00 | B35: 05:19:00 | C35: -97.01842656 | D35: -19.84546531 | E35: =$F$3*E_max_y($B$8,$B$9,$B$10,A35,$B$3,$C$3,$D$3)*E_max_x($B$8,$B$9,$B$10,A35,$B$3,$C$3,$E$3)*IG($B$8,$B$9,$B$10,A35,$B$3,$C$3,$E$3)/1000 -> 0 | G35: -95.61965438 | H35: -19.39413067 | I35: =$F$4*E_max_y($B$8,$B$9,$B$10,A35,$B$4,$C$4,$D$4)*E_max_x($B$8,$B$9,$B$10,A35,$B$4,$C$4,$E$4)*IG($B$8,$B$9,$B$10,A35,$B$4,$C$4,$E$4)/1000 -> 0
A36: 04:20:00 | B36: 05:20:00 | C36: -96.81985013 | D36: -19.68534832 | E36: =$F$3*E_max_y($B$8,$B$9,$B$10,A36,$B$3,$C$3,$D$3)*E_max_x($B$8,$B$9,$B$10,A36,$B$3,$C$3,$E$3)*IG($B$8,$B$9,$B$10,A36,$B$3,$C$3,$E$3)/1000 -> 0 | G36: -95.42749601 | H36: -19.2278158 | I36: =$F$4*E_max_y($B$8,$B$9,$B$10,A36,$B$4,$C$4,$D$4)*E_max_x($B$8,$B$9,$B$10,A36,$B$4,$C$4,$E$4)*IG($B$8,$B$9,$B$10,A36,$B$4,$C$4,$E$4)/1000 -> 0
A37: 04:21:00 | B37: 05:21:00 | C37: -96.62153234 | D37: -19.52517009 | E37: =$F$3*E_max_y($B$8,$B$9,$B$10,A37,$B$3,$C$3,$D$3)*E_max_x($B$8,$B$9,$B$10,A37,$B$3,$C$3,$E$3)*IG($B$8,$B$9,$B$10,A37,$B$3,$C$3,$E$3)/1000 -> 0 | G37: -95.23558333 | H37: -19.06145371 | I37: =$F$4*E_max_y($B$8,$B$9,$B$10,A37,$B$4,$C$4,$D$4)*E_max_x($B$8,$B$9,$B$10,A37,$B$4,$C$4,$E$4)*IG($B$8,$B$9,$B$10,A37,$B$4,$C$4,$E$4)/1000 -> 0
A38: 04:22:00 | B38: 05:22:00 | C38: -96.4234694 | D38: -19.36493271 | E38: =$F$3*E_max_y($B$8,$B$9,$B$10,A38,$B$3,$C$3,$D$3)*E_max_x($B$8,$B$9,$B$10,A38,$B$3,$C$3,$E$3)*IG($B$8,$B$9,$B$10,A38,$B$3,$C$3,$E$3)/1000 -> 0 | G38: -95.04391243 | H38: -18.89504642 | I38: =$F$4*E_max_y($B$8,$B$9,$B$10,A38,$B$4,$C$4,$D$4)*E_max_x($B$8,$B$9,$B$10,A38,$B$4,$C$4,$E$4)*IG($B$8,$B$9,$B$10,A38,$B$4,$C$4,$E$4)/1000 -> 0
A39: 04:23:00 | B39: 05:23:00 | C39: -96.22565756 | D39: -19.20463827 | E39: =$F$3*E_max_y($B$8,$B$9,$B$10,A39,$B$3,$C$3,$D$3)*E_max_x($B$8,$B$9,$B$10,A39,$B$3,$C$3,$E$3)*IG($B$8,$B$9,$B$10,A39,$B$3,$C$3,$E$3)/1000 -> 0 | G39: -94.85247943 | H39: -18.72859596 | I39: =$F$4*E_max_y($B$8,$B$9,$B$10,A39,$B$4,$C$4,$D$4)*E_max_x($B$8,$B$9,$B$10,A39,$B$4,$C$4,$E$4)*IG($B$8,$B$9,$B$10,A39,$B$4,$C$4,$E$4)/1000 -> 0
A40: 04:24:00 | B40: 05:24:00 | C40: -96.02809308 | D40: -19.04428886 | E40: =$F$3*E_max_y($B$8,$B$9,$B$10,A40,$B$3,$C$3,$D$3)*E_max_x($B$8,$B$9,$B$10,A40,$B$3,$C$3,$E$3)*IG($B$8,$B$9,$B$10,A40,$B$3,$C$3,$E$3)/1000 -> 0 | G40: -94.66128045 | H40: -18.56210438 | I40: =$F$4*E_max_y($B$8,$B$9,$B$10,A40,$B$4,$C$4,$D$4)*E_max_x($B$8,$B$9,$B$10,A40,$B$4,$C$4,$E$4)*IG($B$8,$B$9,$B$10,A40,$B$4,$C$4,$E$4)/1000 -> 0
A41: 04:25:00 | B41: 05:25:00 | C41: -95.83077223 | D41: -18.88388654 | E41: =$F$3*E_max_y($B$8,$B$9,$B$10,A41,$B$3,$C$3,$D$3)*E_max_x($B$8,$B$9,$B$10,A41,$B$3,$C$3,$E$3)*IG($B$8,$B$9,$B$10,A41,$B$3,$C$3,$E$3)/1000 -> 0 | G41: -94.47031162 | H41: -18.39557368 | I41: =$F$4*E_max_y($B$8,$B$9,$B$10,A41,$B$4,$C$4,$D$4)*E_max_x($B$8,$B$9,$B$10,A41,$B$4,$C$4,$E$4)*IG($B$8,$B$9,$B$10,A41,$B$4,$C$4,$E$4)/1000 -> 0
A42: 04:26:00 | B42: 05:26:00 | C42: -95.63369128 | D42: -18.7234334 | E42: =$F$3*E_max_y($B$8,$B$9,$B$10,A42,$B$3,$C$3,$D$3)*E_max_x($B$8,$B$9,$B$10,A42,$B$3,$C$3,$E$3)*IG($B$8,$B$9,$B$10,A42,$B$3,$C$3,$E$3)/1000 -> 0 | G42: -94.27956911 | H42: -18.22900588 | I42: =$F$4*E_max_y($B$8,$B$9,$B$10,A42,$B$4,$C$4,$D$4)*E_max_x($B$8,$B$9,$B$10,A42,$B$4,$C$4,$E$4)*IG($B$8,$B$9,$B$10,A42,$B$4,$C$4,$E$4)/1000 -> 0
A43: 04:27:00 | B43: 05:27:00 | C43: -95.43684654 | D43: -18.56293149 | E43: =$F$3*E_max_y($B$8,$B$9,$B$10,A43,$B$3,$C$3,$D$3)*E_max_x($B$8,$B$9,$B$10,A43,$B$3,$C$3,$E$3)*IG($B$8,$B$9,$B$10,A43,$B$3,$C$3,$E$3)/1000 -> 0 | G43: -94.08904909 | H43: -18.062403 | I43: =$F$4*E_max_y($B$8,$B$9,$B$10,A43,$B$4,$C$4,$D$4)*E_max_x($B$8,$B$9,$B$10,A43,$B$4,$C$4,$E$4)*IG($B$8,$B$9,$B$10,A43,$B$4,$C$4,$E$4)/1000 -> 0
A44: 04:28:00 | B44: 05:28:00 | C44: -95.24023432 | D44: -18.40238288 | E44: =$F$3*E_max_y($B$8,$B$9,$B$10,A44,$B$3,$C$3,$D$3)*E_max_x($B$8,$B$9,$B$10,A44,$B$3,$C$3,$E$3)*IG($B$8,$B$9,$B$10,A44,$B$3,$C$3,$E$3)/1000 -> 0 | G44: -93.89874773 | H44: -17.89576702 | I44: =$F$4*E_max_y($B$8,$B$9,$B$10,A44,$B$4,$C$4,$D$4)*E_max_x($B$8,$B$9,$B$10,A44,$B$4,$C$4,$E$4)*IG($B$8,$B$9,$B$10,A44,$B$4,$C$4,$E$4)/1000 -> 0
A45: 04:29:00 | B45: 05:29:00 | C45: -95.04385094 | D45: -18.2417896 | E45: =$F$3*E_max_y($B$8,$B$9,$B$10,A45,$B$3,$C$3,$D$3)*E_max_x($B$8,$B$9,$B$10,A45,$B$3,$C$3,$E$3)*IG($B$8,$B$9,$B$10,A45,$B$3,$C$3,$E$3)/1000 -> 0 | G45: -93.70866125 | H45: -17.72909996 | I45: =$F$4*E_max_y($B$8,$B$9,$B$10,A45,$B$4,$C$4,$D$4)*E_max_x($B$8,$B$9,$B$10,A45,$B$4,$C$4,$E$4)*IG($B$8,$B$9,$B$10,A45,$B$4,$C$4,$E$4)/1000 -> 0
A46: 04:30:00 | B46: 05:30:00 | C46: -94.84769275 | D46: -18.08115372 | E46: =$F$3*E_max_y($B$8,$B$9,$B$10,A46,$B$3,$C$3,$D$3)*E_max_x($B$8,$B$9,$B$10,A46,$B$3,$C$3,$E$3)*IG($B$8,$B$9,$B$10,A46,$B$3,$C$3,$E$3)/1000 -> 0 | G46: -93.51878587 | H46: -17.56240379 | I46: =$F$4*E_max_y($B$8,$B$9,$B$10,A46,$B$4,$C$4,$D$4)*E_max_x($B$8,$B$9,$B$10,A46,$B$4,$C$4,$E$4)*IG($B$8,$B$9,$B$10,A46,$B$4,$C$4,$E$4)/1000 -> 0
A47: 04:31:00 | B47: 05:31:00 | C47: -94.65175609 | D47: -17.92047726 | E47: =$F$3*E_max_y($B$8,$B$9,$B$10,A47,$B$3,$C$3,$D$3)*E_max_x($B$8,$B$9,$B$10,A47,$B$3,$C$3,$E$3)*IG($B$8,$B$9,$B$10,A47,$B$3,$C$3,$E$3)/1000 -> 0 | G47: -93.32911782 | H47: -17.39568051 | I47: =$F$4*E_max_y($B$8,$B$9,$B$10,A47,$B$4,$C$4,$D$4)*E_max_x($B$8,$B$9,$B$10,A47,$B$4,$C$4,$E$4)*IG($B$8,$B$9,$B$10,A47,$B$4,$C$4,$E$4)/1000 -> 0
A48: 04:32:00 | B48: 05:32:00 | C48: -94.45603734 | D48: -17.75976227 | E48: =$F$3*E_max_y($B$8,$B$9,$B$10,A48,$B$3,$C$3,$D$3)*E_max_x($B$8,$B$9,$B$10,A48,$B$3,$C$3,$E$3)*IG($B$8,$B$9,$B$10,A48,$B$3,$C$3,$E$3)/1000 -> 0 | G48: -93.13965334 | H48: -17.2289321 | I48: =$F$4*E_max_y($B$8,$B$9,$B$10,A48,$B$4,$C$4,$D$4)*E_max_x($B$8,$B$9,$B$10,A48,$B$4,$C$4,$E$4)*IG($B$8,$B$9,$B$10,A48,$B$4,$C$4,$E$4)/1000 -> 0
A49: 04:33:00 | B49: 05:33:00 | C49: -94.26053287 | D49: -17.59901076 | E49: =$F$3*E_max_y($B$8,$B$9,$B$10,A49,$B$3,$C$3,$D$3)*E_max_x($B$8,$B$9,$B$10,A49,$B$3,$C$3,$E$3)*IG($B$8,$B$9,$B$10,A49,$B$3,$C$3,$E$3)/1000 -> 0 | G49: -92.95038871 | H49: -17.06216051 | I49: =$F$4*E_max_y($B$8,$B$9,$B$10,A49,$B$4,$C$4,$D$4)*E_max_x($B$8,$B$9,$B$10,A49,$B$4,$C$4,$E$4)*IG($B$8,$B$9,$B$10,A49,$B$4,$C$4,$E$4)/1000 -> 0
A50: 04:34:00 | B50: 05:34:00 | C50: -94.06523907 | D50: -17.43822477 | E50: =$F$3*E_max_y($B$8,$B$9,$B$10,A50,$B$3,$C$3,$D$3)*E_max_x($B$8,$B$9,$B$10,A50,$B$3,$C$3,$E$3)*IG($B$8,$B$9,$B$10,A50,$B$3,$C$3,$E$3)/1000 -> 0 | G50: -92.76132019 | H50: -16.89536772 | I50: =$F$4*E_max_y($B$8,$B$9,$B$10,A50,$B$4,$C$4,$D$4)*E_max_x($B$8,$B$9,$B$10,A50,$B$4,$C$4,$E$4)*IG($B$8,$B$9,$B$10,A50,$B$4,$C$4,$E$4)/1000 -> 0
A51: 04:35:00 | B51: 05:35:00 | C51: -93.87015236 | D51: -17.2774063 | E51: =$F$3*E_max_y($B$8,$B$9,$B$10,A51,$B$3,$C$3,$D$3)*E_max_x($B$8,$B$9,$B$10,A51,$B$3,$C$3,$E$3)*IG($B$8,$B$9,$B$10,A51,$B$3,$C$3,$E$3)/1000 -> 0 | G51: -92.5724441 | H51: -16.72855569 | I51: =$F$4*E_max_y($B$8,$B$9,$B$10,A51,$B$4,$C$4,$D$4)*E_max_x($B$8,$B$9,$B$10,A51,$B$4,$C$4,$E$4)*IG($B$8,$B$9,$B$10,A51,$B$4,$C$4,$E$4)/1000 -> 0
A52: 04:36:00 | B52: 05:36:00 | C52: -93.67526915 | D52: -17.11655736 | E52: =$F$3*E_max_y($B$8,$B$9,$B$10,A52,$B$3,$C$3,$D$3)*E_max_x($B$8,$B$9,$B$10,A52,$B$3,$C$3,$E$3)*IG($B$8,$B$9,$B$10,A52,$B$3,$C$3,$E$3)/1000 -> 0 | G52: -92.38375672 | H52: -16.56172637 | I52: =$F$4*E_max_y($B$8,$B$9,$B$10,A52,$B$4,$C$4,$D$4)*E_max_x($B$8,$B$9,$B$10,A52,$B$4,$C$4,$E$4)*IG($B$8,$B$9,$B$10,A52,$B$4,$C$4,$E$4)/1000 -> 0
A53: 04:37:00 | B53: 05:37:00 | C53: -93.48058588 | D53: -16.95567995 | E53: =$F$3*E_max_y($B$8,$B$9,$B$10,A53,$B$3,$C$3,$D$3)*E_max_x($B$8,$B$9,$B$10,A53,$B$3,$C$3,$E$3)*IG($B$8,$B$9,$B$10,A53,$B$3,$C$3,$E$3)/1000 -> 0 | G53: -92.1952544 | H53: -16.39488169 | I53: =$F$4*E_max_y($B$8,$B$9,$B$10,A53,$B$4,$C$4,$D$4)*E_max_x($B$8,$B$9,$B$10,A53,$B$4,$C$4,$E$4)*IG($B$8,$B$9,$B$10,A53,$B$4,$C$4,$E$4)/1000 -> 0
A54: 04:38:00 | B54: 05:38:00 | C54: -93.28609899 | D54: -16.79477607 | E54: =$F$3*E_max_y($B$8,$B$9,$B$10,A54,$B$3,$C$3,$D$3)*E_max_x($B$8,$B$9,$B$10,A54,$B$3,$C$3,$E$3)*IG($B$8,$B$9,$B$10,A54,$B$3,$C$3,$E$3)/1000 -> 0 | G54: -92.00693346 | H54: -16.2280236 | I54: =$F$4*E_max_y($B$8,$B$9,$B$10,A54,$B$4,$C$4,$D$4)*E_max_x($B$8,$B$9,$B$10,A54,$B$4,$C$4,$E$4)*IG($B$8,$B$9,$B$10,A54,$B$4,$C$4,$E$4)/1000 -> 0
A55: 04:39:00 | B55: 05:39:00 | C55: -93.09180494 | D55: -16.63384771 | E55: =$F$3*E_max_y($B$8,$B$9,$B$10,A55,$B$3,$C$3,$D$3)*E_max_x($B$8,$B$9,$B$10,A55,$B$3,$C$3,$E$3)*IG($B$8,$B$9,$B$10,A55,$B$3,$C$3,$E$3)/1000 -> 0 | G55: -91.81879025 | H55: -16.06115402 | I55: =$F$4*E_max_y($B$8,$B$9,$B$10,A55,$B$4,$C$4,$D$4)*E_max_x($B$8,$B$9,$B$10,A55,$B$4,$C$4,$E$4)*IG($B$8,$B$9,$B$10,A55,$B$4,$C$4,$E$4)/1000 -> 0
A56: 04:40:00 | B56: 05:40:00 | C56: -92.89770021 | D56: -16.47289684 | E56: =$F$3*E_max_y($B$8,$B$9,$B$10,A56,$B$3,$C$3,$D$3)*E_max_x($B$8,$B$9,$B$10,A56,$B$3,$C$3,$E$3)*IG($B$8,$B$9,$B$10,A56,$B$3,$C$3,$E$3)/1000 -> 0 | G56: -91.63082115 | H56: -15.89427486 | I56: =$F$4*E_max_y($B$8,$B$9,$B$10,A56,$B$4,$C$4,$D$4)*E_max_x($B$8,$B$9,$B$10,A56,$B$4,$C$4,$E$4)*IG($B$8,$B$9,$B$10,A56,$B$4,$C$4,$E$4)/1000 -> 0
A57: 04:41:00 | B57: 05:41:00 | C57: -92.70378128 | D57: -16.31192544 | E57: =$F$3*E_max_y($B$8,$B$9,$B$10,A57,$B$3,$C$3,$D$3)*E_max_x($B$8,$B$9,$B$10,A57,$B$3,$C$3,$E$3)*IG($B$8,$B$9,$B$10,A57,$B$3,$C$3,$E$3)/1000 -> 0 | G57: -91.44302253 | H57: -15.72738804 | I57: =$F$4*E_max_y($B$8,$B$9,$B$10,A57,$B$4,$C$4,$D$4)*E_max_x($B$8,$B$9,$B$10,A57,$B$4,$C$4,$E$4)*IG($B$8,$B$9,$B$10,A57,$B$4,$C$4,$E$4)/1000 -> 0
A58: 04:42:00 | B58: 05:42:00 | C58: -92.51004464 | D58: -16.15093548 | E58: =$F$3*E_max_y($B$8,$B$9,$B$10,A58,$B$3,$C$3,$D$3)*E_max_x($B$8,$B$9,$B$10,A58,$B$3,$C$3,$E$3)*IG($B$8,$B$9,$B$10,A58,$B$3,$C$3,$E$3)/1000 -> 0 | G58: -91.25539078 | H58: -15.56049544 | I58: =$F$4*E_max_y($B$8,$B$9,$B$10,A58,$B$4,$C$4,$D$4)*E_max_x($B$8,$B$9,$B$10,A58,$B$4,$C$4,$E$4)*IG($B$8,$B$9,$B$10,A58,$B$4,$C$4,$E$4)/1000 -> 0
A59: 04:43:00 | B59: 05:43:00 | C59: -92.3164868 | D59: -15.98992891 | E59: =$F$3*E_max_y($B$8,$B$9,$B$10,A59,$B$3,$C$3,$D$3)*E_max_x($B$8,$B$9,$B$10,A59,$B$3,$C$3,$E$3)*IG($B$8,$B$9,$B$10,A59,$B$3,$C$3,$E$3)/1000 -> 0 | G59: -91.06792232 | H59: -15.39359896 | I59: =$F$4*E_max_y($B$8,$B$9,$B$10,A59,$B$4,$C$4,$D$4)*E_max_x($B$8,$B$9,$B$10,A59,$B$4,$C$4,$E$4)*IG($B$8,$B$9,$B$10,A59,$B$4,$C$4,$E$4)/1000 -> 0
A60: 04:44:00 | B60: 05:44:00 | C60: -92.1231043 | D60: -15.82890767 | E60: =$F$3*E_max_y($B$8,$B$9,$B$10,A60,$B$3,$C$3,$D$3)*E_max_x($B$8,$B$9,$B$10,A60,$B$3,$C$3,$E$3)*IG($B$8,$B$9,$B$10,A60,$B$3,$C$3,$E$3)/1000 -> 0 | G60: -90.88061356 | H60: -15.22670046 | I60: =$F$4*E_max_y($B$8,$B$9,$B$10,A60,$B$4,$C$4,$D$4)*E_max_x($B$8,$B$9,$B$10,A60,$B$4,$C$4,$E$4)*IG($B$8,$B$9,$B$10,A60,$B$4,$C$4,$E$4)/1000 -> 0
A61: 04:45:00 | B61: 05:45:00 | C61: -91.92989365 | D61: -15.6678737 | E61: =$F$3*E_max_y($B$8,$B$9,$B$10,A61,$B$3,$C$3,$D$3)*E_max_x($B$8,$B$9,$B$10,A61,$B$3,$C$3,$E$3)*IG($B$8,$B$9,$B$10,A61,$B$3,$C$3,$E$3)/1000 -> 0 | G61: -90.69346094 | H61: -15.05980181 | I61: =$F$4*E_max_y($B$8,$B$9,$B$10,A61,$B$4,$C$4,$D$4)*E_max_x($B$8,$B$9,$B$10,A61,$B$4,$C$4,$E$4)*IG($B$8,$B$9,$B$10,A61,$B$4,$C$4,$E$4)/1000 -> 0
A62: 04:46:00 | B62: 05:46:00 | C62: -91.73685141 | D62: -15.50682894 | E62: =$F$3*E_max_y($B$8,$B$9,$B$10,A62,$B$3,$C$3,$D$3)*E_max_x($B$8,$B$9,$B$10,A62,$B$3,$C$3,$E$3)*IG($B$8,$B$9,$B$10,A62,$B$3,$C$3,$E$3)/1000 -> 0 | G62: -90.5064609 | H62: -14.89290484 | I62: =$F$4*E_max_y($B$8,$B$9,$B$10,A62,$B$4,$C$4,$D$4)*E_max_x($B$8,$B$9,$B$10,A62,$B$4,$C$4,$E$4)*IG($B$8,$B$9,$B$10,A62,$B$4,$C$4,$E$4)/1000 -> 0
A63: 04:47:00 | B63: 05:47:00 | C63: -91.54397414 | D63: -15.3457753 | E63: =$F$3*E_max_y($B$8,$B$9,$B$10,A63,$B$3,$C$3,$D$3)*E_max_x($B$8,$B$9,$B$10,A63,$B$3,$C$3,$E$3)*IG($B$8,$B$9,$B$10,A63,$B$3,$C$3,$E$3)/1000 -> 0 | G63: -90.3196099 | H63: -14.72601138 | I63: =$F$4*E_max_y($B$8,$B$9,$B$10,A63,$B$4,$C$4,$D$4)*E_max_x($B$8,$B$9,$B$10,A63,$B$4,$C$4,$E$4)*IG($B$8,$B$9,$B$10,A63,$B$4,$C$4,$E$4)/1000 -> 0
A64: 04:48:00 | B64: 05:48:00 | C64: -91.35125841 | D64: -15.18471467 | E64: =$F$3*E_max_y($B$8,$B$9,$B$10,A64,$B$3,$C$3,$D$3)*E_max_x($B$8,$B$9,$B$10,A64,$B$3,$C$3,$E$3)*IG($B$8,$B$9,$B$10,A64,$B$3,$C$3,$E$3)/1000 -> 0 | G64: -90.13290443 | H64: -14.55912324 | I64: =$F$4*E_max_y($B$8,$B$9,$B$10,A64,$B$4,$C$4,$D$4)*E_max_x($B$8,$B$9,$B$10,A64,$B$4,$C$4,$E$4)*IG($B$8,$B$9,$B$10,A64,$B$4,$C$4,$E$4)/1000 -> 0
A65: 04:49:00 | B65: 05:49:00 | C65: -91.1587008 | D65: -15.02364896 | E65: =$F$3*E_max_y($B$8,$B$9,$B$10,A65,$B$3,$C$3,$D$3)*E_max_x($B$8,$B$9,$B$10,A65,$B$3,$C$3,$E$3)*IG($B$8,$B$9,$B$10,A65,$B$3,$C$3,$E$3)/1000 -> 0 | G65: -89.94634096 | H65: -14.3922422 | I65: =$F$4*E_max_y($B$8,$B$9,$B$10,A65,$B$4,$C$4,$D$4)*E_max_x($B$8,$B$9,$B$10,A65,$B$4,$C$4,$E$4)*IG($B$8,$B$9,$B$10,A65,$B$4,$C$4,$E$4)/1000 -> 0
A66: 04:50:00 | B66: 05:50:00 | C66: -90.9662979 | D66: -14.86258003 | E66: =$F$3*E_max_y($B$8,$B$9,$B$10,A66,$B$3,$C$3,$D$3)*E_max_x($B$8,$B$9,$B$10,A66,$B$3,$C$3,$E$3)*IG($B$8,$B$9,$B$10,A66,$B$3,$C$3,$E$3)/1000 -> 0 | G66: -89.75991599 | H66: -14.22537003 | I66: =$F$4*E_max_y($B$8,$B$9,$B$10,A66,$B$4,$C$4,$D$4)*E_max_x($B$8,$B$9,$B$10,A66,$B$4,$C$4,$E$4)*IG($B$8,$B$9,$B$10,A66,$B$4,$C$4,$E$4)/1000 -> 0
A67: 04:51:00 | B67: 05:51:00 | C67: -90.77404632 | D67: -14.70150976 | E67: =$F$3*E_max_y($B$8,$B$9,$B$10,A67,$B$3,$C$3,$D$3)*E_max_x($B$8,$B$9,$B$10,A67,$B$3,$C$3,$E$3)*IG($B$8,$B$9,$B$10,A67,$B$3,$C$3,$E$3)/1000 -> 0 | G67: -89.57362604 | H67: -14.05850846 | I67: =$F$4*E_max_y($B$8,$B$9,$B$10,A67,$B$4,$C$4,$D$4)*E_max_x($B$8,$B$9,$B$10,A67,$B$4,$C$4,$E$4)*IG($B$8,$B$9,$B$10,A67,$B$4,$C$4,$E$4)/1000 -> 0
A68: 04:52:00 | B68: 05:52:00 | C68: -90.58194268 | D68: -14.54043998 | E68: =$F$3*E_max_y($B$8,$B$9,$B$10,A68,$B$3,$C$3,$D$3)*E_max_x($B$8,$B$9,$B$10,A68,$B$3,$C$3,$E$3)*IG($B$8,$B$9,$B$10,A68,$B$3,$C$3,$E$3)/1000 -> 0 | G68: -89.38746762 | H68: -13.89165921 | I68: =$F$4*E_max_y($B$8,$B$9,$B$10,A68,$B$4,$C$4,$D$4)*E_max_x($B$8,$B$9,$B$10,A68,$B$4,$C$4,$E$4)*IG($B$8,$B$9,$B$10,A68,$B$4,$C$4,$E$4)/1000 -> 0
A69: 04:53:00 | B69: 05:53:00 | C69: -90.3899836 | D69: -14.37937251 | E69: =$F$3*E_max_y($B$8,$B$9,$B$10,A69,$B$3,$C$3,$D$3)*E_max_x($B$8,$B$9,$B$10,A69,$B$3,$C$3,$E$3)*IG($B$8,$B$9,$B$10,A69,$B$3,$C$3,$E$3)/1000 -> 0 | G69: -89.20143728 | H69: -13.72482395 | I69: =$F$4*E_max_y($B$8,$B$9,$B$10,A69,$B$4,$C$4,$D$4)*E_max_x($B$8,$B$9,$B$10,A69,$B$4,$C$4,$E$4)*IG($B$8,$B$9,$B$10,A69,$B$4,$C$4,$E$4)/1000 -> 0
A70: 04:54:00 | B70: 05:54:00 | C70: -90.19816573 | D70: -14.21830917 | E70: =$F$3*E_max_y($B$8,$B$9,$B$10,A70,$B$3,$C$3,$D$3)*E_max_x($B$8,$B$9,$B$10,A70,$B$3,$C$3,$E$3)*IG($B$8,$B$9,$B$10,A70,$B$3,$C$3,$E$3)/1000 -> 0 | G70: -89.01553156 | H70: -13.55800432 | I70: =$F$4*E_max_y($B$8,$B$9,$B$10,A70,$B$4,$C$4,$D$4)*E_max_x($B$8,$B$9,$B$10,A70,$B$4,$C$4,$E$4)*IG($B$8,$B$9,$B$10,A70,$B$4,$C$4,$E$4)/1000 -> 0
A71: 04:55:00 | B71: 05:55:00 | C71: -90.00648573 | D71: -14.05725173 | E71: =$F$3*E_max_y($B$8,$B$9,$B$10,A71,$B$3,$C$3,$D$3)*E_max_x($B$8,$B$9,$B$10,A71,$B$3,$C$3,$E$3)*IG($B$8,$B$9,$B$10,A71,$B$3,$C$3,$E$3)/1000 -> 0 | G71: -88.82974702 | H71: -13.39120193 | I71: =$F$4*E_max_y($B$8,$B$9,$B$10,A71,$B$4,$C$4,$D$4)*E_max_x($B$8,$B$9,$B$10,A71,$B$4,$C$4,$E$4)*IG($B$8,$B$9,$B$10,A71,$B$4,$C$4,$E$4)/1000 -> 0
A72: 04:56:00 | B72: 05:56:00 | C72: -89.81494024 | D72: -13.89620196 | E72: =$F$3*E_max_y($B$8,$B$9,$B$10,A72,$B$3,$C$3,$D$3)*E_max_x($B$8,$B$9,$B$10,A72,$B$3,$C$3,$E$3)*IG($B$8,$B$9,$B$10,A72,$B$3,$C$3,$E$3)/1000 -> 0 | G72: -88.64408024 | H72: -13.22441834 | I72: =$F$4*E_max_y($B$8,$B$9,$B$10,A72,$B$4,$C$4,$D$4)*E_max_x($B$8,$B$9,$B$10,A72,$B$4,$C$4,$E$4)*IG($B$8,$B$9,$B$10,A72,$B$4,$C$4,$E$4)/1000 -> 0
A73: 04:57:00 | B73: 05:57:00 | C73: -89.62352595 | D73: -13.73516156 | E73: =$F$3*E_max_y($B$8,$B$9,$B$10,A73,$B$3,$C$3,$D$3)*E_max_x($B$8,$B$9,$B$10,A73,$B$3,$C$3,$E$3)*IG($B$8,$B$9,$B$10,A73,$B$3,$C$3,$E$3)/1000 -> 0 | G73: -88.4585278 | H73: -13.05765504 | I73: =$F$4*E_max_y($B$8,$B$9,$B$10,A73,$B$4,$C$4,$D$4)*E_max_x($B$8,$B$9,$B$10,A73,$B$4,$C$4,$E$4)*IG($B$8,$B$9,$B$10,A73,$B$4,$C$4,$E$4)/1000 -> 0
A74: 04:58:00 | B74: 05:58:00 | C74: -89.43223954 | D74: -13.57413226 | E74: =$F$3*E_max_y($B$8,$B$9,$B$10,A74,$B$3,$C$3,$D$3)*E_max_x($B$8,$B$9,$B$10,A74,$B$3,$C$3,$E$3)*IG($B$8,$B$9,$B$10,A74,$B$3,$C$3,$E$3)/1000 -> 0 | G74: -88.27308629 | H74: -12.89091349 | I74: =$F$4*E_max_y($B$8,$B$9,$B$10,A74,$B$4,$C$4,$D$4)*E_max_x($B$8,$B$9,$B$10,A74,$B$4,$C$4,$E$4)*IG($B$8,$B$9,$B$10,A74,$B$4,$C$4,$E$4)/1000 -> 0
A75: 04:59:00 | B75: 05:59:00 | C75: -89.24107771 | D75: -13.41311569 | E75: =$F$3*E_max_y($B$8,$B$9,$B$10,A75,$B$3,$C$3,$D$3)*E_max_x($B$8,$B$9,$B$10,A75,$B$3,$C$3,$E$3)*IG($B$8,$B$9,$B$10,A75,$B$3,$C$3,$E$3)/1000 -> 0 | G75: -88.08775232 | H75: -12.72419507 | I75: =$F$4*E_max_y($B$8,$B$9,$B$10,A75,$B$4,$C$4,$D$4)*E_max_x($B$8,$B$9,$B$10,A75,$B$4,$C$4,$E$4)*IG($B$8,$B$9,$B$10,A75,$B$4,$C$4,$E$4)/1000 -> 0
A76: 05:00:00 | B76: 06:00:00 | C76: -89.05003716 | D76: -13.25211349 | E76: =$F$3*E_max_y($B$8,$B$9,$B$10,A76,$B$3,$C$3,$D$3)*E_max_x($B$8,$B$9,$B$10,A76,$B$3,$C$3,$E$3)*IG($B$8,$B$9,$B$10,A76,$B$3,$C$3,$E$3)/1000 -> 0 | G76: -87.90252251 | H76: -12.55750111 | I76: =$F$4*E_max_y($B$8,$B$9,$B$10,A76,$B$4,$C$4,$D$4)*E_max_x($B$8,$B$9,$B$10,A76,$B$4,$C$4,$E$4)*IG($B$8,$B$9,$B$10,A76,$B$4,$C$4,$E$4)/1000 -> 0
A77: 05:01:00 | B77: 06:01:00 | C77: -88.85911461 | D77: -13.09112723 | E77: =$F$3*E_max_y($B$8,$B$9,$B$10,A77,$B$3,$C$3,$D$3)*E_max_x($B$8,$B$9,$B$10,A77,$B$3,$C$3,$E$3)*IG($B$8,$B$9,$B$10,A77,$B$3,$C$3,$E$3)/1000 -> 0 | G77: -87.71739349 | H77: -12.39083282 | I77: =$F$4*E_max_y($B$8,$B$9,$B$10,A77,$B$4,$C$4,$D$4)*E_max_x($B$8,$B$9,$B$10,A77,$B$4,$C$4,$E$4)*IG($B$8,$B$9,$B$10,A77,$B$4,$C$4,$E$4)/1000 -> 0
A78: 05:02:00 | B78: 06:02:00 | C78: -88.66830679 | D78: -12.93015845 | E78: =$F$3*E_max_y($B$8,$B$9,$B$10,A78,$B$3,$C$3,$D$3)*E_max_x($B$8,$B$9,$B$10,A78,$B$3,$C$3,$E$3)*IG($B$8,$B$9,$B$10,A78,$B$3,$C$3,$E$3)/1000 -> 0 | G78: -87.53236189 | H78: -12.22419135 | I78: =$F$4*E_max_y($B$8,$B$9,$B$10,A78,$B$4,$C$4,$D$4)*E_max_x($B$8,$B$9,$B$10,A78,$B$4,$C$4,$E$4)*IG($B$8,$B$9,$B$10,A78,$B$4,$C$4,$E$4)/1000 -> 0
A79: 05:03:00 | B79: 06:03:00 | C79: -88.47761043 | D79: -12.76920861 | E79: =$F$3*E_max_y($B$8,$B$9,$B$10,A79,$B$3,$C$3,$D$3)*E_max_x($B$8,$B$9,$B$10,A79,$B$3,$C$3,$E$3)*IG($B$8,$B$9,$B$10,A79,$B$3,$C$3,$E$3)/1000 -> 0 | G79: -87.34742438 | H79: -12.05757774 | I79: =$F$4*E_max_y($B$8,$B$9,$B$10,A79,$B$4,$C$4,$D$4)*E_max_x($B$8,$B$9,$B$10,A79,$B$4,$C$4,$E$4)*IG($B$8,$B$9,$B$10,A79,$B$4,$C$4,$E$4)/1000 -> 0
A80: 05:04:00 | B80: =A80+3600*$B$11/86400 -> 06:04:00 | C80: =azimut($B$8,$B$9,$B$10,A80,$B$3,$C$3) -> -88.28702229 | D80: =refraktion_h($B$8,$B$9,$B$10,A80,$B$3,$C$3) -> -12.60827913 | E80: =$F$3*E_max_y($B$8,$B$9,$B$10,A80,$B$3,$C$3,$D$3)*E_max_x($B$8,$B$9,$B$10,A80,$B$3,$C$3,$E$3)*IG($B$8,$B$9,$B$10,A80,$B$3,$C$3,$E$3)/1000 -> 0 | G80: =azimut($B$8,$B$9,$B$10,A80,$B$4,$C$4) -> -87.1625776 | H80: =refraktion_h($B$8,$B$9,$B$10,A80,$B$4,$C$4) -> -11.89099289 | I80: =$F$4*E_max_y($B$8,$B$9,$B$10,A80,$B$4,$C$4,$D$4)*E_max_x($B$8,$B$9,$B$10,A80,$B$4,$C$4,$E$4)*IG($B$8,$B$9,$B$10,A80,$B$4,$C$4,$E$4)/1000 -> 0
A81: =A80+60/86400 -> 05:05:00 | B81: 06:05:00 | C81: -88.09653913 | D81: -12.44737136 | E81: =$F$3*E_max_y($B$8,$B$9,$B$10,A81,$B$3,$C$3,$D$3)*E_max_x($B$8,$B$9,$B$10,A81,$B$3,$C$3,$E$3)*IG($B$8,$B$9,$B$10,A81,$B$3,$C$3,$E$3)/1000 -> 0 | G81: -86.97781825 | H81: -11.7244376 | I81: =$F$4*E_max_y($B$8,$B$9,$B$10,A81,$B$4,$C$4,$D$4)*E_max_x($B$8,$B$9,$B$10,A81,$B$4,$C$4,$E$4)*IG($B$8,$B$9,$B$10,A81,$B$4,$C$4,$E$4)/1000 -> 0
A82: 05:06:00 | B82: 06:06:00 | C82: -87.9061577 | D82: -12.28648655 | E82: =$F$3*E_max_y($B$8,$B$9,$B$10,A82,$B$3,$C$3,$D$3)*E_max_x($B$8,$B$9,$B$10,A82,$B$3,$C$3,$E$3)*IG($B$8,$B$9,$B$10,A82,$B$3,$C$3,$E$3)/1000 -> 0 | G82: -86.79314299 | H82: -11.5579125 | I82: =$F$4*E_max_y($B$8,$B$9,$B$10,A82,$B$4,$C$4,$D$4)*E_max_x($B$8,$B$9,$B$10,A82,$B$4,$C$4,$E$4)*IG($B$8,$B$9,$B$10,A82,$B$4,$C$4,$E$4)/1000 -> 0
A83: 05:07:00 | B83: 06:07:00 | C83: -87.7158748 | D83: -12.12562589 | E83: =$F$3*E_max_y($B$8,$B$9,$B$10,A83,$B$3,$C$3,$D$3)*E_max_x($B$8,$B$9,$B$10,A83,$B$3,$C$3,$E$3)*IG($B$8,$B$9,$B$10,A83,$B$3,$C$3,$E$3)/1000 -> 0 | G83: -86.60854852 | H83: -11.39141804 | I83: =$F$4*E_max_y($B$8,$B$9,$B$10,A83,$B$4,$C$4,$D$4)*E_max_x($B$8,$B$9,$B$10,A83,$B$4,$C$4,$E$4)*IG($B$8,$B$9,$B$10,A83,$B$4,$C$4,$E$4)/1000 -> 0
A84: 05:08:00 | B84: 06:08:00 | C84: -87.52568721 | D84: -11.96479045 | E84: =$F$3*E_max_y($B$8,$B$9,$B$10,A84,$B$3,$C$3,$D$3)*E_max_x($B$8,$B$9,$B$10,A84,$B$3,$C$3,$E$3)*IG($B$8,$B$9,$B$10,A84,$B$3,$C$3,$E$3)/1000 -> 0 | G84: -86.42403155 | H84: -11.22495448 | I84: =$F$4*E_max_y($B$8,$B$9,$B$10,A84,$B$4,$C$4,$D$4)*E_max_x($B$8,$B$9,$B$10,A84,$B$4,$C$4,$E$4)*IG($B$8,$B$9,$B$10,A84,$B$4,$C$4,$E$4)/1000 -> 0
A85: 05:09:00 | B85: 06:09:00 | C85: -87.33559174 | D85: -11.80398121 | E85: =$F$3*E_max_y($B$8,$B$9,$B$10,A85,$B$3,$C$3,$D$3)*E_max_x($B$8,$B$9,$B$10,A85,$B$3,$C$3,$E$3)*IG($B$8,$B$9,$B$10,A85,$B$3,$C$3,$E$3)/1000 -> 0 | G85: -86.23958879 | H85: -11.05852187 | I85: =$F$4*E_max_y($B$8,$B$9,$B$10,A85,$B$4,$C$4,$D$4)*E_max_x($B$8,$B$9,$B$10,A85,$B$4,$C$4,$E$4)*IG($B$8,$B$9,$B$10,A85,$B$4,$C$4,$E$4)/1000 -> 0
A86: 05:10:00 | B86: 06:10:00 | C86: -87.14558518 | D86: -11.64319901 | E86: =$F$3*E_max_y($B$8,$B$9,$B$10,A86,$B$3,$C$3,$D$3)*E_max_x($B$8,$B$9,$B$10,A86,$B$3,$C$3,$E$3)*IG($B$8,$B$9,$B$10,A86,$B$3,$C$3,$E$3)/1000 -> 0 | G86: -86.05521696 | H86: -10.89211998 | I86: =$F$4*E_max_y($B$8,$B$9,$B$10,A86,$B$4,$C$4,$D$4)*E_max_x($B$8,$B$9,$B$10,A86,$B$4,$C$4,$E$4)*IG($B$8,$B$9,$B$10,A86,$B$4,$C$4,$E$4)/1000 -> 0
A87: 05:11:00 | B87: 06:11:00 | C87: -86.95566435 | D87: -11.48244455 | E87: =$F$3*E_max_y($B$8,$B$9,$B$10,A87,$B$3,$C$3,$D$3)*E_max_x($B$8,$B$9,$B$10,A87,$B$3,$C$3,$E$3)*IG($B$8,$B$9,$B$10,A87,$B$3,$C$3,$E$3)/1000 -> 0 | G87: -85.87091281 | H87: -10.7257483 | I87: =$F$4*E_max_y($B$8,$B$9,$B$10,A87,$B$4,$C$4,$D$4)*E_max_x($B$8,$B$9,$B$10,A87,$B$4,$C$4,$E$4)*IG($B$8,$B$9,$B$10,A87,$B$4,$C$4,$E$4)/1000 -> 0
A88: 05:12:00 | B88: 06:12:00 | C88: -86.7658261 | D88: -11.32171838 | E88: =$F$3*E_max_y($B$8,$B$9,$B$10,A88,$B$3,$C$3,$D$3)*E_max_x($B$8,$B$9,$B$10,A88,$B$3,$C$3,$E$3)*IG($B$8,$B$9,$B$10,A88,$B$3,$C$3,$E$3)/1000 -> 0 | G88: -85.68667307 | H88: -10.559406 | I88: =$F$4*E_max_y($B$8,$B$9,$B$10,A88,$B$4,$C$4,$D$4)*E_max_x($B$8,$B$9,$B$10,A88,$B$4,$C$4,$E$4)*IG($B$8,$B$9,$B$10,A88,$B$4,$C$4,$E$4)/1000 -> 0
A89: 05:13:00 | B89: 06:13:00 | C89: -86.57606725 | D89: -11.16102084 | E89: =$F$3*E_max_y($B$8,$B$9,$B$10,A89,$B$3,$C$3,$D$3)*E_max_x($B$8,$B$9,$B$10,A89,$B$3,$C$3,$E$3)*IG($B$8,$B$9,$B$10,A89,$B$3,$C$3,$E$3)/1000 -> 0 | G89: -85.50249449 | H89: -10.39309184 | I89: =$F$4*E_max_y($B$8,$B$9,$B$10,A89,$B$4,$C$4,$D$4)*E_max_x($B$8,$B$9,$B$10,A89,$B$4,$C$4,$E$4)*IG($B$8,$B$9,$B$10,A89,$B$4,$C$4,$E$4)/1000 -> 0
A90: 05:14:00 | B90: 06:14:00 | C90: -86.38638464 | D90: -11.0003521 | E90: =$F$3*E_max_y($B$8,$B$9,$B$10,A90,$B$3,$C$3,$D$3)*E_max_x($B$8,$B$9,$B$10,A90,$B$3,$C$3,$E$3)*IG($B$8,$B$9,$B$10,A90,$B$3,$C$3,$E$3)/1000 -> 0 | G90: -85.31837385 | H90: -10.22680417 | I90: =$F$4*E_max_y($B$8,$B$9,$B$10,A90,$B$4,$C$4,$D$4)*E_max_x($B$8,$B$9,$B$10,A90,$B$4,$C$4,$E$4)*IG($B$8,$B$9,$B$10,A90,$B$4,$C$4,$E$4)/1000 -> 0
A91: 05:15:00 | B91: 06:15:00 | C91: -86.19677515 | D91: -10.83971208 | E91: =$F$3*E_max_y($B$8,$B$9,$B$10,A91,$B$3,$C$3,$D$3)*E_max_x($B$8,$B$9,$B$10,A91,$B$3,$C$3,$E$3)*IG($B$8,$B$9,$B$10,A91,$B$3,$C$3,$E$3)/1000 -> 0 | G91: -85.13430791 | H91: -10.06054082 | I91: =$F$4*E_max_y($B$8,$B$9,$B$10,A91,$B$4,$C$4,$D$4)*E_max_x($B$8,$B$9,$B$10,A91,$B$4,$C$4,$E$4)*IG($B$8,$B$9,$B$10,A91,$B$4,$C$4,$E$4)/1000 -> 0
A92: 05:16:00 | B92: 06:16:00 | C92: -86.00723562 | D92: -10.67910043 | E92: =$F$3*E_max_y($B$8,$B$9,$B$10,A92,$B$3,$C$3,$D$3)*E_max_x($B$8,$B$9,$B$10,A92,$B$3,$C$3,$E$3)*IG($B$8,$B$9,$B$10,A92,$B$3,$C$3,$E$3)/1000 -> 0 | G92: -84.95029346 | H92: -9.894299064 | I92: =$F$4*E_max_y($B$8,$B$9,$B$10,A92,$B$4,$C$4,$D$4)*E_max_x($B$8,$B$9,$B$10,A92,$B$4,$C$4,$E$4)*IG($B$8,$B$9,$B$10,A92,$B$4,$C$4,$E$4)/1000 -> 0
A93: 05:17:00 | B93: 06:17:00 | C93: -85.81776295 | D93: -10.5185165 | E93: =$F$3*E_max_y($B$8,$B$9,$B$10,A93,$B$3,$C$3,$D$3)*E_max_x($B$8,$B$9,$B$10,A93,$B$3,$C$3,$E$3)*IG($B$8,$B$9,$B$10,A93,$B$3,$C$3,$E$3)/1000 -> 0 | G93: -84.76632729 | H93: -9.728075488 | I93: =$F$4*E_max_y($B$8,$B$9,$B$10,A93,$B$4,$C$4,$D$4)*E_max_x($B$8,$B$9,$B$10,A93,$B$4,$C$4,$E$4)*IG($B$8,$B$9,$B$10,A93,$B$4,$C$4,$E$4)/1000 -> 0
A94: 05:18:00 | B94: 06:18:00 | C94: -85.628354 | D94: -10.3579593 | E94: =$F$3*E_max_y($B$8,$B$9,$B$10,A94,$B$3,$C$3,$D$3)*E_max_x($B$8,$B$9,$B$10,A94,$B$3,$C$3,$E$3)*IG($B$8,$B$9,$B$10,A94,$B$3,$C$3,$E$3)/1000 -> 0 | G94: -84.5824062 | H94: -9.561865928 | I94: =$F$4*E_max_y($B$8,$B$9,$B$10,A94,$B$4,$C$4,$D$4)*E_max_x($B$8,$B$9,$B$10,A94,$B$4,$C$4,$E$4)*IG($B$8,$B$9,$B$10,A94,$B$4,$C$4,$E$4)/1000 -> 0
A95: 05:19:00 | B95: 06:19:00 | C95: -85.43900568 | D95: -10.19742745 | E95: =$F$3*E_max_y($B$8,$B$9,$B$10,A95,$B$3,$C$3,$D$3)*E_max_x($B$8,$B$9,$B$10,A95,$B$3,$C$3,$E$3)*IG($B$8,$B$9,$B$10,A95,$B$3,$C$3,$E$3)/1000 -> 0 | G95: -84.39852699 | H95: -9.395665337 | I95: =$F$4*E_max_y($B$8,$B$9,$B$10,A95,$B$4,$C$4,$D$4)*E_max_x($B$8,$B$9,$B$10,A95,$B$4,$C$4,$E$4)*IG($B$8,$B$9,$B$10,A95,$B$4,$C$4,$E$4)/1000 -> 0
A96: 05:20:00 | B96: 06:20:00 | C96: -85.24971488 | D96: -10.03691912 | E96: =$F$3*E_max_y($B$8,$B$9,$B$10,A96,$B$3,$C$3,$D$3)*E_max_x($B$8,$B$9,$B$10,A96,$B$3,$C$3,$E$3)*IG($B$8,$B$9,$B$10,A96,$B$3,$C$3,$E$3)/1000 -> 0 | G96: -84.21468649 | H96: -9.229467642 | I96: =$F$4*E_max_y($B$8,$B$9,$B$10,A96,$B$4,$C$4,$D$4)*E_max_x($B$8,$B$9,$B$10,A96,$B$4,$C$4,$E$4)*IG($B$8,$B$9,$B$10,A96,$B$4,$C$4,$E$4)/1000 -> 0
A97: 05:21:00 | B97: 06:21:00 | C97: -85.06047851 | D97: -9.876431951 | E97: =$F$3*E_max_y($B$8,$B$9,$B$10,A97,$B$3,$C$3,$D$3)*E_max_x($B$8,$B$9,$B$10,A97,$B$3,$C$3,$E$3)*IG($B$8,$B$9,$B$10,A97,$B$3,$C$3,$E$3)/1000 -> 0 | G97: -84.03088153 | H97: -9.063265591 | I97: =$F$4*E_max_y($B$8,$B$9,$B$10,A97,$B$4,$C$4,$D$4)*E_max_x($B$8,$B$9,$B$10,A97,$B$4,$C$4,$E$4)*IG($B$8,$B$9,$B$10,A97,$B$4,$C$4,$E$4)/1000 -> 0
A98: 05:22:00 | B98: 06:22:00 | C98: -84.8712935 | D98: -9.715963019 | E98: =$F$3*E_max_y($B$8,$B$9,$B$10,A98,$B$3,$C$3,$D$3)*E_max_x($B$8,$B$9,$B$10,A98,$B$3,$C$3,$E$3)*IG($B$8,$B$9,$B$10,A98,$B$3,$C$3,$E$3)/1000 -> 0 | G98: -83.84710894 | H98: -8.897050558 | I98: =$F$4*E_max_y($B$8,$B$9,$B$10,A98,$B$4,$C$4,$D$4)*E_max_x($B$8,$B$9,$B$10,A98,$B$4,$C$4,$E$4)*IG($B$8,$B$9,$B$10,A98,$B$4,$C$4,$E$4)/1000 -> 0
A99: 05:23:00 | B99: 06:23:00 | C99: -84.68215677 | D99: -9.555508714 | E99: =$F$3*E_max_y($B$8,$B$9,$B$10,A99,$B$3,$C$3,$D$3)*E_max_x($B$8,$B$9,$B$10,A99,$B$3,$C$3,$E$3)*IG($B$8,$B$9,$B$10,A99,$B$3,$C$3,$E$3)/1000 -> 0 | G99: -83.66336556 | H99: -8.73081232 | I99: =$F$4*E_max_y($B$8,$B$9,$B$10,A99,$B$4,$C$4,$D$4)*E_max_x($B$8,$B$9,$B$10,A99,$B$4,$C$4,$E$4)*IG($B$8,$B$9,$B$10,A99,$B$4,$C$4,$E$4)/1000 -> 0
A100: 05:24:00 | B100: 06:24:00 | C100: -84.49306526 | D100: -9.395064653 | E100: =$F$3*E_max_y($B$8,$B$9,$B$10,A100,$B$3,$C$3,$D$3)*E_max_x($B$8,$B$9,$B$10,A100,$B$3,$C$3,$E$3)*IG($B$8,$B$9,$B$10,A100,$B$3,$C$3,$E$3)/1000 -> 0 | G100: -83.47964825 | H100: -8.564538796 | I100: =$F$4*E_max_y($B$8,$B$9,$B$10,A100,$B$4,$C$4,$D$4)*E_max_x($B$8,$B$9,$B$10,A100,$B$4,$C$4,$E$4)*IG($B$8,$B$9,$B$10,A100,$B$4,$C$4,$E$4)/1000 -> 0
A101: 05:25:00 | B101: 06:25:00 | C101: -84.30401591 | D101: -9.234625563 | E101: =$F$3*E_max_y($B$8,$B$9,$B$10,A101,$B$3,$C$3,$D$3)*E_max_x($B$8,$B$9,$B$10,A101,$B$3,$C$3,$E$3)*IG($B$8,$B$9,$B$10,A101,$B$3,$C$3,$E$3)/1000 -> 0 | G101: -83.29595387 | H101: -8.398215737 | I101: =$F$4*E_max_y($B$8,$B$9,$B$10,A101,$B$4,$C$4,$D$4)*E_max_x($B$8,$B$9,$B$10,A101,$B$4,$C$4,$E$4)*IG($B$8,$B$9,$B$10,A101,$B$4,$C$4,$E$4)/1000 -> 0
A102: 05:26:00 | B102: 06:26:00 | C102: -84.11500567 | D102: -9.074185143 | E102: =$F$3*E_max_y($B$8,$B$9,$B$10,A102,$B$3,$C$3,$D$3)*E_max_x($B$8,$B$9,$B$10,A102,$B$3,$C$3,$E$3)*IG($B$8,$B$9,$B$10,A102,$B$3,$C$3,$E$3)/1000 -> 0 | G102: -83.11227929 | H102: -8.231826354 | I102: =$F$4*E_max_y($B$8,$B$9,$B$10,A102,$B$4,$C$4,$D$4)*E_max_x($B$8,$B$9,$B$10,A102,$B$4,$C$4,$E$4)*IG($B$8,$B$9,$B$10,A102,$B$4,$C$4,$E$4)/1000 -> 0
A103: 05:27:00 | B103: 06:27:00 | C103: -83.9260315 | D103: -8.913735908 | E103: =$F$3*E_max_y($B$8,$B$9,$B$10,A103,$B$3,$C$3,$D$3)*E_max_x($B$8,$B$9,$B$10,A103,$B$3,$C$3,$E$3)*IG($B$8,$B$9,$B$10,A103,$B$3,$C$3,$E$3)/1000 -> 0 | G103: -82.92862139 | H103: -8.065350889 | I103: =$F$4*E_max_y($B$8,$B$9,$B$10,A103,$B$4,$C$4,$D$4)*E_max_x($B$8,$B$9,$B$10,A103,$B$4,$C$4,$E$4)*IG($B$8,$B$9,$B$10,A103,$B$4,$C$4,$E$4)/1000 -> 0
A104: 05:28:00 | B104: 06:28:00 | C104: -83.73709038 | D104: -8.753269001 | E104: =$F$3*E_max_y($B$8,$B$9,$B$10,A104,$B$3,$C$3,$D$3)*E_max_x($B$8,$B$9,$B$10,A104,$B$3,$C$3,$E$3)*IG($B$8,$B$9,$B$10,A104,$B$3,$C$3,$E$3)/1000 -> 0 | G104: -82.74497705 | H104: -7.898766093 | I104: =$F$4*E_max_y($B$8,$B$9,$B$10,A104,$B$4,$C$4,$D$4)*E_max_x($B$8,$B$9,$B$10,A104,$B$4,$C$4,$E$4)*IG($B$8,$B$9,$B$10,A104,$B$4,$C$4,$E$4)/1000 -> 0
A105: 05:29:00 | B105: 06:29:00 | C105: -83.54817928 | D105: -8.592773978 | E105: =$F$3*E_max_y($B$8,$B$9,$B$10,A105,$B$3,$C$3,$D$3)*E_max_x($B$8,$B$9,$B$10,A105,$B$3,$C$3,$E$3)*IG($B$8,$B$9,$B$10,A105,$B$3,$C$3,$E$3)/1000 -> 0 | G105: -82.56134316 | H105: -7.732044612 | I105: =$F$4*E_max_y($B$8,$B$9,$B$10,A105,$B$4,$C$4,$D$4)*E_max_x($B$8,$B$9,$B$10,A105,$B$4,$C$4,$E$4)*IG($B$8,$B$9,$B$10,A105,$B$4,$C$4,$E$4)/1000 -> 0
A106: 05:30:00 | B106: 06:30:00 | C106: -83.35929519 | D106: -8.432238552 | E106: =$F$3*E_max_y($B$8,$B$9,$B$10,A106,$B$3,$C$3,$D$3)*E_max_x($B$8,$B$9,$B$10,A106,$B$3,$C$3,$E$3)*IG($B$8,$B$9,$B$10,A106,$B$3,$C$3,$E$3)/1000 -> 0 | G106: -82.37771664 | H106: -7.565154249 | I106: =$F$4*E_max_y($B$8,$B$9,$B$10,A106,$B$4,$C$4,$D$4)*E_max_x($B$8,$B$9,$B$10,A106,$B$4,$C$4,$E$4)*IG($B$8,$B$9,$B$10,A106,$B$4,$C$4,$E$4)/1000 -> 0
A107: 05:31:00 | B107: 06:31:00 | C107: -83.1704351 | D107: -8.271648296 | E107: =$F$3*E_max_y($B$8,$B$9,$B$10,A107,$B$3,$C$3,$D$3)*E_max_x($B$8,$B$9,$B$10,A107,$B$3,$C$3,$E$3)*IG($B$8,$B$9,$B$10,A107,$B$3,$C$3,$E$3)/1000 -> 0 | G107: -82.19409438 | H107: -7.398057087 | I107: =$F$4*E_max_y($B$8,$B$9,$B$10,A107,$B$4,$C$4,$D$4)*E_max_x($B$8,$B$9,$B$10,A107,$B$4,$C$4,$E$4)*IG($B$8,$B$9,$B$10,A107,$B$4,$C$4,$E$4)/1000 -> 0
A108: 05:32:00 | B108: 06:32:00 | C108: -82.981596 | D108: -8.110986289 | E108: =$F$3*E_max_y($B$8,$B$9,$B$10,A108,$B$3,$C$3,$D$3)*E_max_x($B$8,$B$9,$B$10,A108,$B$3,$C$3,$E$3)*IG($B$8,$B$9,$B$10,A108,$B$3,$C$3,$E$3)/1000 -> 0 | G108: -82.01047331 | H108: -7.23070842 | I108: =$F$4*E_max_y($B$8,$B$9,$B$10,A108,$B$4,$C$4,$D$4)*E_max_x($B$8,$B$9,$B$10,A108,$B$4,$C$4,$E$4)*IG($B$8,$B$9,$B$10,A108,$B$4,$C$4,$E$4)/1000 -> 0
A109: 05:33:00 | B109: 06:33:00 | C109: -82.79277492 | D109: -7.950232698 | E109: =$F$3*E_max_y($B$8,$B$9,$B$10,A109,$B$3,$C$3,$D$3)*E_max_x($B$8,$B$9,$B$10,A109,$B$3,$C$3,$E$3)*IG($B$8,$B$9,$B$10,A109,$B$3,$C$3,$E$3)/1000 -> 0 | G109: -81.82685034 | H109: -7.063055482 | I109: =$F$4*E_max_y($B$8,$B$9,$B$10,A109,$B$4,$C$4,$D$4)*E_max_x($B$8,$B$9,$B$10,A109,$B$4,$C$4,$E$4)*IG($B$8,$B$9,$B$10,A109,$B$4,$C$4,$E$4)/1000 -> 0
A110: 05:34:00 | B110: 06:34:00 | C110: -82.60396886 | D110: -7.789364291 | E110: =$F$3*E_max_y($B$8,$B$9,$B$10,A110,$B$3,$C$3,$D$3)*E_max_x($B$8,$B$9,$B$10,A110,$B$3,$C$3,$E$3)*IG($B$8,$B$9,$B$10,A110,$B$3,$C$3,$E$3)/1000 -> 0 | G110: -81.64322241 | H110: -6.895035873 | I110: =$F$4*E_max_y($B$8,$B$9,$B$10,A110,$B$4,$C$4,$D$4)*E_max_x($B$8,$B$9,$B$10,A110,$B$4,$C$4,$E$4)*IG($B$8,$B$9,$B$10,A110,$B$4,$C$4,$E$4)/1000 -> 0
A111: 05:35:00 | B111: 06:35:00 | C111: -82.41517484 | D111: -7.628353847 | E111: =$F$3*E_max_y($B$8,$B$9,$B$10,A111,$B$3,$C$3,$D$3)*E_max_x($B$8,$B$9,$B$10,A111,$B$3,$C$3,$E$3)*IG($B$8,$B$9,$B$10,A111,$B$3,$C$3,$E$3)/1000 -> 0 | G111: -81.45958647 | H111: -6.726575636 | I111: =$F$4*E_max_y($B$8,$B$9,$B$10,A111,$B$4,$C$4,$D$4)*E_max_x($B$8,$B$9,$B$10,A111,$B$4,$C$4,$E$4)*IG($B$8,$B$9,$B$10,A111,$B$4,$C$4,$E$4)/1000 -> 0
A112: 05:36:00 | B112: 06:36:00 | C112: -82.22638991 | D112: -7.467169468 | E112: =$F$3*E_max_y($B$8,$B$9,$B$10,A112,$B$3,$C$3,$D$3)*E_max_x($B$8,$B$9,$B$10,A112,$B$3,$C$3,$E$3)*IG($B$8,$B$9,$B$10,A112,$B$3,$C$3,$E$3)/1000 -> 0 | G112: -81.27593945 | H112: -6.557586829 | I112: =$F$4*E_max_y($B$8,$B$9,$B$10,A112,$B$4,$C$4,$D$4)*E_max_x($B$8,$B$9,$B$10,A112,$B$4,$C$4,$E$4)*IG($B$8,$B$9,$B$10,A112,$B$4,$C$4,$E$4)/1000 -> 0
A113: 05:37:00 | B113: 06:37:00 | C113: -82.0376111 | D113: -7.305773746 | E113: =$F$3*E_max_y($B$8,$B$9,$B$10,A113,$B$3,$C$3,$D$3)*E_max_x($B$8,$B$9,$B$10,A113,$B$3,$C$3,$E$3)*IG($B$8,$B$9,$B$10,A113,$B$3,$C$3,$E$3)/1000 -> 0 | G113: -81.09227831 | H113: -6.387964342 | I113: =$F$4*E_max_y($B$8,$B$9,$B$10,A113,$B$4,$C$4,$D$4)*E_max_x($B$8,$B$9,$B$10,A113,$B$4,$C$4,$E$4)*IG($B$8,$B$9,$B$10,A113,$B$4,$C$4,$E$4)/1000 -> 0
A114: 05:38:00 | B114: 06:38:00 | C114: -81.84883545 | D114: -7.144122774 | E114: =$F$3*E_max_y($B$8,$B$9,$B$10,A114,$B$3,$C$3,$D$3)*E_max_x($B$8,$B$9,$B$10,A114,$B$3,$C$3,$E$3)*IG($B$8,$B$9,$B$10,A114,$B$3,$C$3,$E$3)/1000 -> 0 | G114: -80.9086 | H114: -6.217581484 | I114: =$F$4*E_max_y($B$8,$B$9,$B$10,A114,$B$4,$C$4,$D$4)*E_max_x($B$8,$B$9,$B$10,A114,$B$4,$C$4,$E$4)*IG($B$8,$B$9,$B$10,A114,$B$4,$C$4,$E$4)/1000 -> 0
A115: 05:39:00 | B115: 06:39:00 | C115: -81.66006002 | D115: -6.982164948 | E115: =$F$3*E_max_y($B$8,$B$9,$B$10,A115,$B$3,$C$3,$D$3)*E_max_x($B$8,$B$9,$B$10,A115,$B$3,$C$3,$E$3)*IG($B$8,$B$9,$B$10,A115,$B$3,$C$3,$E$3)/1000 -> 0 | G115: -80.72490151 | H115: -6.046283109 | I115: =$F$4*E_max_y($B$8,$B$9,$B$10,A115,$B$4,$C$4,$D$4)*E_max_x($B$8,$B$9,$B$10,A115,$B$4,$C$4,$E$4)*IG($B$8,$B$9,$B$10,A115,$B$4,$C$4,$E$4)/1000 -> 0
A116: 05:40:00 | B116: 06:40:00 | C116: -81.47128187 | D116: -6.819839512 | E116: =$F$3*E_max_y($B$8,$B$9,$B$10,A116,$B$3,$C$3,$D$3)*E_max_x($B$8,$B$9,$B$10,A116,$B$3,$C$3,$E$3)*IG($B$8,$B$9,$B$10,A116,$B$3,$C$3,$E$3)/1000 -> 0 | G116: -80.5411798 | H116: -5.87387291 | I116: =$F$4*E_max_y($B$8,$B$9,$B$10,A116,$B$4,$C$4,$D$4)*E_max_x($B$8,$B$9,$B$10,A116,$B$4,$C$4,$E$4)*IG($B$8,$B$9,$B$10,A116,$B$4,$C$4,$E$4)/1000 -> 0
A117: 05:41:00 | B117: 06:41:00 | C117: -81.28249807 | D117: -6.657074756 | E117: =$F$3*E_max_y($B$8,$B$9,$B$10,A117,$B$3,$C$3,$D$3)*E_max_x($B$8,$B$9,$B$10,A117,$B$3,$C$3,$E$3)*IG($B$8,$B$9,$B$10,A117,$B$3,$C$3,$E$3)/1000 -> 0 | G117: -80.35743185 | H117: -5.700083076 | I117: =$F$4*E_max_y($B$8,$B$9,$B$10,A117,$B$4,$C$4,$D$4)*E_max_x($B$8,$B$9,$B$10,A117,$B$4,$C$4,$E$4)*IG($B$8,$B$9,$B$10,A117,$B$4,$C$4,$E$4)/1000 -> 0
A118: 05:42:00 | B118: 06:42:00 | C118: -81.09370569 | D118: -6.493785738 | E118: =$F$3*E_max_y($B$8,$B$9,$B$10,A118,$B$3,$C$3,$D$3)*E_max_x($B$8,$B$9,$B$10,A118,$B$3,$C$3,$E$3)*IG($B$8,$B$9,$B$10,A118,$B$3,$C$3,$E$3)/1000 -> 0 | G118: -80.17365465 | H118: -5.524471557 | I118: =$F$4*E_max_y($B$8,$B$9,$B$10,A118,$B$4,$C$4,$D$4)*E_max_x($B$8,$B$9,$B$10,A118,$B$4,$C$4,$E$4)*IG($B$8,$B$9,$B$10,A118,$B$4,$C$4,$E$4)/1000 -> 0
A119: 05:43:00 | B119: 06:43:00 | C119: -80.90490181 | D119: -6.329871268 | E119: =$F$3*E_max_y($B$8,$B$9,$B$10,A119,$B$3,$C$3,$D$3)*E_max_x($B$8,$B$9,$B$10,A119,$B$3,$C$3,$E$3)*IG($B$8,$B$9,$B$10,A119,$B$3,$C$3,$E$3)/1000 -> 0 | G119: -79.98984519 | H119: -5.345812439 | I119: =$F$4*E_max_y($B$8,$B$9,$B$10,A119,$B$4,$C$4,$D$4)*E_max_x($B$8,$B$9,$B$10,A119,$B$4,$C$4,$E$4)*IG($B$8,$B$9,$B$10,A119,$B$4,$C$4,$E$4)/1000 -> 0
A120: 05:44:00 | B120: 06:44:00 | C120: -80.71608353 | D120: -6.165209602 | E120: =$F$3*E_max_y($B$8,$B$9,$B$10,A120,$B$3,$C$3,$D$3)*E_max_x($B$8,$B$9,$B$10,A120,$B$3,$C$3,$E$3)*IG($B$8,$B$9,$B$10,A120,$B$3,$C$3,$E$3)/1000 -> 0 | G120: -79.80600049 | H120: -5.387685679 | I120: =$F$4*E_max_y($B$8,$B$9,$B$10,A120,$B$4,$C$4,$D$4)*E_max_x($B$8,$B$9,$B$10,A120,$B$4,$C$4,$E$4)*IG($B$8,$B$9,$B$10,A120,$B$4,$C$4,$E$4)/1000 -> 0
A121: 05:45:00 | B121: 06:45:00 | C121: -80.52724793 | D121: -5.999651517 | E121: =$F$3*E_max_y($B$8,$B$9,$B$10,A121,$B$3,$C$3,$D$3)*E_max_x($B$8,$B$9,$B$10,A121,$B$3,$C$3,$E$3)*IG($B$8,$B$9,$B$10,A121,$B$3,$C$3,$E$3)/1000 -> 0 | G121: -79.62211753 | H121: -5.002938601 | I121: =$F$4*E_max_y($B$8,$B$9,$B$10,A121,$B$4,$C$4,$D$4)*E_max_x($B$8,$B$9,$B$10,A121,$B$4,$C$4,$E$4)*IG($B$8,$B$9,$B$10,A121,$B$4,$C$4,$E$4)/1000 -> 0
A122: 05:46:00 | B122: 06:46:00 | C122: -80.33839213 | D122: -5.833006855 | E122: =$F$3*E_max_y($B$8,$B$9,$B$10,A122,$B$3,$C$3,$D$3)*E_max_x($B$8,$B$9,$B$10,A122,$B$3,$C$3,$E$3)*IG($B$8,$B$9,$B$10,A122,$B$3,$C$3,$E$3)/1000 -> 0 | G122: -79.43819334 | H122: -4.811791388 | I122: =$F$4*E_max_y($B$8,$B$9,$B$10,A122,$B$4,$C$4,$D$4)*E_max_x($B$8,$B$9,$B$10,A122,$B$4,$C$4,$E$4)*IG($B$8,$B$9,$B$10,A122,$B$4,$C$4,$E$4)/1000 -> 0
A123: 05:47:00 | B123: 06:47:00 | C123: -80.14951322 | D123: -5.665010707 | E123: =$F$3*E_max_y($B$8,$B$9,$B$10,A123,$B$3,$C$3,$D$3)*E_max_x($B$8,$B$9,$B$10,A123,$B$3,$C$3,$E$3)*IG($B$8,$B$9,$B$10,A123,$B$3,$C$3,$E$3)/1000 -> 0 | G123: -79.25422494 | H123: -4.623723776 | I123: =$F$4*E_max_y($B$8,$B$9,$B$10,A123,$B$4,$C$4,$D$4)*E_max_x($B$8,$B$9,$B$10,A123,$B$4,$C$4,$E$4)*IG($B$8,$B$9,$B$10,A123,$B$4,$C$4,$E$4)/1000 -> 0
A124: 05:48:00 | B124: 06:48:00 | C124: -79.96060833 | D124: -5.495202509 | E124: =$F$3*E_max_y($B$8,$B$9,$B$10,A124,$B$3,$C$3,$D$3)*E_max_x($B$8,$B$9,$B$10,A124,$B$3,$C$3,$E$3)*IG($B$8,$B$9,$B$10,A124,$B$3,$C$3,$E$3)/1000 -> 0 | G124: -79.07020935 | H124: -4.432921783 | I124: =$F$4*E_max_y($B$8,$B$9,$B$10,A124,$B$4,$C$4,$D$4)*E_max_x($B$8,$B$9,$B$10,A124,$B$4,$C$4,$E$4)*IG($B$8,$B$9,$B$10,A124,$B$4,$C$4,$E$4)/1000 -> 0
A125: 05:49:00 | B125: 06:49:00 | C125: -79.77167458 | D125: -5.322143572 | E125: =$F$3*E_max_y($B$8,$B$9,$B$10,A125,$B$3,$C$3,$D$3)*E_max_x($B$8,$B$9,$B$10,A125,$B$3,$C$3,$E$3)*IG($B$8,$B$9,$B$10,A125,$B$3,$C$3,$E$3)/1000 -> 0 | G125: -78.88614361 | H125: -4.238391215 | I125: =$F$4*E_max_y($B$8,$B$9,$B$10,A125,$B$4,$C$4,$D$4)*E_max_x($B$8,$B$9,$B$10,A125,$B$4,$C$4,$E$4)*IG($B$8,$B$9,$B$10,A125,$B$4,$C$4,$E$4)/1000 -> 0
A126: 05:50:00 | B126: 06:50:00 | C126: -79.5827091 | D126: -5.157674292 | E126: =$F$3*E_max_y($B$8,$B$9,$B$10,A126,$B$3,$C$3,$D$3)*E_max_x($B$8,$B$9,$B$10,A126,$B$3,$C$3,$E$3)*IG($B$8,$B$9,$B$10,A126,$B$3,$C$3,$E$3)/1000 -> 0 | G126: -78.70202475 | H126: -4.039555874 | I126: =$F$4*E_max_y($B$8,$B$9,$B$10,A126,$B$4,$C$4,$D$4)*E_max_x($B$8,$B$9,$B$10,A126,$B$4,$C$4,$E$4)*IG($B$8,$B$9,$B$10,A126,$B$4,$C$4,$E$4)/1000 -> 0
A127: 05:51:00 | B127: 06:51:00 | C127: -79.39370902 | D127: -4.990819194 | E127: =$F$3*E_max_y($B$8,$B$9,$B$10,A127,$B$3,$C$3,$D$3)*E_max_x($B$8,$B$9,$B$10,A127,$B$3,$C$3,$E$3)*IG($B$8,$B$9,$B$10,A127,$B$3,$C$3,$E$3)/1000 -> 0 | G127: -78.51784983 | H127: -3.836010173 | I127: =$F$4*E_max_y($B$8,$B$9,$B$10,A127,$B$4,$C$4,$D$4)*E_max_x($B$8,$B$9,$B$10,A127,$B$4,$C$4,$E$4)*IG($B$8,$B$9,$B$10,A127,$B$4,$C$4,$E$4)/1000 -> 0
A128: 05:52:00 | B128: 06:52:00 | C128: -79.20467149 | D128: -4.807362303 | E128: =$F$3*E_max_y($B$8,$B$9,$B$10,A128,$B$3,$C$3,$D$3)*E_max_x($B$8,$B$9,$B$10,A128,$B$3,$C$3,$E$3)*IG($B$8,$B$9,$B$10,A128,$B$3,$C$3,$E$3)/1000 -> 0 | G128: -78.33361587 | H128: -3.627532645 | I128: =$F$4*E_max_y($B$8,$B$9,$B$10,A128,$B$4,$C$4,$D$4)*E_max_x($B$8,$B$9,$B$10,A128,$B$4,$C$4,$E$4)*IG($B$8,$B$9,$B$10,A128,$B$4,$C$4,$E$4)/1000 -> 0
A129: 05:53:00 | B129: 06:53:00 | C129: -79.01559365 | D129: -4.625977483 | E129: =$F$3*E_max_y($B$8,$B$9,$B$10,A129,$B$3,$C$3,$D$3)*E_max_x($B$8,$B$9,$B$10,A129,$B$3,$C$3,$E$3)*IG($B$8,$B$9,$B$10,A129,$B$3,$C$3,$E$3)/1000 -> 0 | G129: -78.14931996 | H129: -3.414164321 | I129: =$F$4*E_max_y($B$8,$B$9,$B$10,A129,$B$4,$C$4,$D$4)*E_max_x($B$8,$B$9,$B$10,A129,$B$4,$C$4,$E$4)*IG($B$8,$B$9,$B$10,A129,$B$4,$C$4,$E$4)/1000 -> 0
A130: 05:54:00 | B130: 06:54:00 | C130: -78.82647267 | D130: -4.44206625 | E130: =$F$3*E_max_y($B$8,$B$9,$B$10,A130,$B$3,$C$3,$D$3)*E_max_x($B$8,$B$9,$B$10,A130,$B$3,$C$3,$E$3)*IG($B$8,$B$9,$B$10,A130,$B$3,$C$3,$E$3)/1000 -> 0 | G130: -77.96495914 | H130: -3.196314351 | I130: =$F$4*E_max_y($B$8,$B$9,$B$10,A130,$B$4,$C$4,$D$4)*E_max_x($B$8,$B$9,$B$10,A130,$B$4,$C$4,$E$4)*IG($B$8,$B$9,$B$10,A130,$B$4,$C$4,$E$4)/1000 -> 0
A131: 05:55:00 | B131: 06:55:00 | C131: -78.63730569 | D131: -4.254726715 | E131: =$F$3*E_max_y($B$8,$B$9,$B$10,A131,$B$3,$C$3,$D$3)*E_max_x($B$8,$B$9,$B$10,A131,$B$3,$C$3,$E$3)*IG($B$8,$B$9,$B$10,A131,$B$3,$C$3,$E$3)/1000 -> 0 | G131: -77.78053049 | H131: -2.974868049 | I131: =$F$4*E_max_y($B$8,$B$9,$B$10,A131,$B$4,$C$4,$D$4)*E_max_x($B$8,$B$9,$B$10,A131,$B$4,$C$4,$E$4)*IG($B$8,$B$9,$B$10,A131,$B$4,$C$4,$E$4)/1000 -> 0
A132: 05:56:00 | B132: 06:56:00 | C132: -78.44808988 | D132: -4.063431741 | E132: =$F$3*E_max_y($B$8,$B$9,$B$10,A132,$B$3,$C$3,$D$3)*E_max_x($B$8,$B$9,$B$10,A132,$B$3,$C$3,$E$3)*IG($B$8,$B$9,$B$10,A132,$B$3,$C$3,$E$3)/1000 -> 0 | G132: -77.59603107 | H132: -2.751264359 | I132: =$F$4*E_max_y($B$8,$B$9,$B$10,A132,$B$4,$C$4,$D$4)*E_max_x($B$8,$B$9,$B$10,A132,$B$4,$C$4,$E$4)*IG($B$8,$B$9,$B$10,A132,$B$4,$C$4,$E$4)/1000 -> 0
A133: 05:57:00 | B133: 06:57:00 | C133: -78.25882243 | D133: -3.86780401 | E133: =$F$3*E_max_y($B$8,$B$9,$B$10,A133,$B$3,$C$3,$D$3)*E_max_x($B$8,$B$9,$B$10,A133,$B$3,$C$3,$E$3)*IG($B$8,$B$9,$B$10,A133,$B$3,$C$3,$E$3)/1000 -> 0 | G133: -77.41145797 | H133: -2.527500676 | I133: =$F$4*E_max_y($B$8,$B$9,$B$10,A133,$B$4,$C$4,$D$4)*E_max_x($B$8,$B$9,$B$10,A133,$B$4,$C$4,$E$4)*IG($B$8,$B$9,$B$10,A133,$B$4,$C$4,$E$4)/1000 -> 0
A134: 05:58:00 | B134: 06:58:00 | C134: -78.06950051 | D134: -3.667619512 | E134: =$F$3*E_max_y($B$8,$B$9,$B$10,A134,$B$3,$C$3,$D$3)*E_max_x($B$8,$B$9,$B$10,A134,$B$3,$C$3,$E$3)*IG($B$8,$B$9,$B$10,A134,$B$3,$C$3,$E$3)/1000 -> 0 | G134: -77.22680827 | H134: -2.306025087 | I134: =$F$4*E_max_y($B$8,$B$9,$B$10,A134,$B$4,$C$4,$D$4)*E_max_x($B$8,$B$9,$B$10,A134,$B$4,$C$4,$E$4)*IG($B$8,$B$9,$B$10,A134,$B$4,$C$4,$E$4)/1000 -> 0
A135: 05:59:00 | B135: 06:59:00 | C135: -77.8801213 | D135: -3.462868349 | E135: =$F$3*E_max_y($B$8,$B$9,$B$10,A135,$B$3,$C$3,$D$3)*E_max_x($B$8,$B$9,$B$10,A135,$B$3,$C$3,$E$3)*IG($B$8,$B$9,$B$10,A135,$B$3,$C$3,$E$3)/1000 -> 0 | G135: -77.04207906 | H135: -2.08949897 | I135: =$F$4*E_max_y($B$8,$B$9,$B$10,A135,$B$4,$C$4,$D$4)*E_max_x($B$8,$B$9,$B$10,A135,$B$4,$C$4,$E$4)*IG($B$8,$B$9,$B$10,A135,$B$4,$C$4,$E$4)/1000 -> 0
A136: 06:00:00 | B136: =A136+3600*$B$11/86400 -> 07:00:00 | C136: -77.690682 | D136: -3.253840355 | E136: =$F$3*E_max_y($B$8,$B$9,$B$10,A136,$B$3,$C$3,$D$3)*E_max_x($B$8,$B$9,$B$10,A136,$B$3,$C$3,$E$3)*IG($B$8,$B$9,$B$10,A136,$B$3,$C$3,$E$3)/1000 -> 0 | G136: -76.85726744 | H136: -1.880456897 | I136: =$F$4*E_max_y($B$8,$B$9,$B$10,A136,$B$4,$C$4,$D$4)*E_max_x($B$8,$B$9,$B$10,A136,$B$4,$C$4,$E$4)*IG($B$8,$B$9,$B$10,A136,$B$4,$C$4,$E$4)/1000 -> 0
A137: 06:01:00 | B137: 07:01:00 | C137: -77.50117981 | D137: -3.04121681 | E137: =$F$3*E_max_y($B$8,$B$9,$B$10,A137,$B$3,$C$3,$D$3)*E_max_x($B$8,$B$9,$B$10,A137,$B$3,$C$3,$E$3)*IG($B$8,$B$9,$B$10,A137,$B$3,$C$3,$E$3)/1000 -> 0 | G137: -76.6723705 | H137: -1.680939795 | I137: =$F$4*E_max_y($B$8,$B$9,$B$10,A137,$B$4,$C$4,$D$4)*E_max_x($B$8,$B$9,$B$10,A137,$B$4,$C$4,$E$4)*IG($B$8,$B$9,$B$10,A137,$B$4,$C$4,$E$4)/1000 -> 0
A138: 06:02:00 | B138: 07:02:00 | C138: -77.31161192 | D138: -2.826144423 | E138: =$F$3*E_max_y($B$8,$B$9,$B$10,A138,$B$3,$C$3,$D$3)*E_max_x($B$8,$B$9,$B$10,A138,$B$3,$C$3,$E$3)*IG($B$8,$B$9,$B$10,A138,$B$3,$C$3,$E$3)/1000 -> 0 | G138: -76.48738535 | H138: -1.492203175 | I138: =$F$4*E_max_y($B$8,$B$9,$B$10,A138,$B$4,$C$4,$D$4)*E_max_x($B$8,$B$9,$B$10,A138,$B$4,$C$4,$E$4)*IG($B$8,$B$9,$B$10,A138,$B$4,$C$4,$E$4)/1000 -> 0
A139: 06:03:00 | B139: 07:03:00 | C139: -77.12197555 | D139: -2.610260231 | E139: =$F$3*E_max_y($B$8,$B$9,$B$10,A139,$B$3,$C$3,$D$3)*E_max_x($B$8,$B$9,$B$10,A139,$B$3,$C$3,$E$3)*IG($B$8,$B$9,$B$10,A139,$B$3,$C$3,$E$3)/1000 -> 0 | G139: -76.3023091 | H139: -1.314583907 | I139: =$F$4*E_max_y($B$8,$B$9,$B$10,A139,$B$4,$C$4,$D$4)*E_max_x($B$8,$B$9,$B$10,A139,$B$4,$C$4,$E$4)*IG($B$8,$B$9,$B$10,A139,$B$4,$C$4,$E$4)/1000 -> 0
A140: 06:04:00 | B140: 07:04:00 | C140: -76.93226792 | D140: -2.395634429 | E140: =$F$3*E_max_y($B$8,$B$9,$B$10,A140,$B$3,$C$3,$D$3)*E_max_x($B$8,$B$9,$B$10,A140,$B$3,$C$3,$E$3)*IG($B$8,$B$9,$B$10,A140,$B$3,$C$3,$E$3)/1000 -> 0 | G140: -76.11713887 | H140: -1.14755204 | I140: =$F$4*E_max_y($B$8,$B$9,$B$10,A140,$B$4,$C$4,$D$4)*E_max_x($B$8,$B$9,$B$10,A140,$B$4,$C$4,$E$4)*IG($B$8,$B$9,$B$10,A140,$B$4,$C$4,$E$4)/1000 -> 0
A141: 06:05:00 | B141: 07:05:00 | C141: -76.74248623 | D141: -2.184610121 | E141: =$F$3*E_max_y($B$8,$B$9,$B$10,A141,$B$3,$C$3,$D$3)*E_max_x($B$8,$B$9,$B$10,A141,$B$3,$C$3,$E$3)*IG($B$8,$B$9,$B$10,A141,$B$3,$C$3,$E$3)/1000 -> 0 | G141: -75.93187178 | H141: -0.9899095983 | I141: =$F$4*E_max_y($B$8,$B$9,$B$10,A141,$B$4,$C$4,$D$4)*E_max_x($B$8,$B$9,$B$10,A141,$B$4,$C$4,$E$4)*IG($B$8,$B$9,$B$10,A141,$B$4,$C$4,$E$4)/1000 -> 0
A142: 06:06:00 | B142: 07:06:00 | C142: -76.55262773 | D142: -1.979547367 | E142: =$F$3*E_max_y($B$8,$B$9,$B$10,A142,$B$3,$C$3,$D$3)*E_max_x($B$8,$B$9,$B$10,A142,$B$3,$C$3,$E$3)*IG($B$8,$B$9,$B$10,A142,$B$3,$C$3,$E$3)/1000 -> 0 | G142: -75.74650496 | H142: -0.8400596254 | I142: =$F$4*E_max_y($B$8,$B$9,$B$10,A142,$B$4,$C$4,$D$4)*E_max_x($B$8,$B$9,$B$10,A142,$B$4,$C$4,$E$4)*IG($B$8,$B$9,$B$10,A142,$B$4,$C$4,$E$4)/1000 -> 0
A143: 06:07:00 | B143: 07:07:00 | C143: -76.36268964 | D143: -1.78251665 | E143: =$F$3*E_max_y($B$8,$B$9,$B$10,A143,$B$3,$C$3,$D$3)*E_max_x($B$8,$B$9,$B$10,A143,$B$3,$C$3,$E$3)*IG($B$8,$B$9,$B$10,A143,$B$3,$C$3,$E$3)/1000 -> 0 | G143: -75.56103553 | H143: -0.696268206 | I143: =$F$4*E_max_y($B$8,$B$9,$B$10,A143,$B$4,$C$4,$D$4)*E_max_x($B$8,$B$9,$B$10,A143,$B$4,$C$4,$E$4)*IG($B$8,$B$9,$B$10,A143,$B$4,$C$4,$E$4)/1000 -> 0
A144: 06:08:00 | B144: 07:08:00 | C144: =azimut($B$8,$B$9,$B$10,A144,$B$3,$C$3) -> -76.1726692 | D144: =refraktion_h($B$8,$B$9,$B$10,A144,$B$3,$C$3) -> -1.595016129 | E144: =$F$3*E_max_y($B$8,$B$9,$B$10,A144,$B$3,$C$3,$D$3)*E_max_x($B$8,$B$9,$B$10,A144,$B$3,$C$3,$E$3)*IG($B$8,$B$9,$B$10,A144,$B$3,$C$3,$E$3)/1000 -> 0 | G144: =azimut($B$8,$B$9,$B$10,A144,$B$4,$C$4) -> -75.37546064 | H144: =refraktion_h($B$8,$B$9,$B$10,A144,$B$4,$C$4) -> -0.5568686814 | I144: =$F$4*E_max_y($B$8,$B$9,$B$10,A144,$B$4,$C$4,$D$4)*E_max_x($B$8,$B$9,$B$10,A144,$B$4,$C$4,$E$4)*IG($B$8,$B$9,$B$10,A144,$B$4,$C$4,$E$4)/1000 -> 0
A145: 06:09:00 | B145: 07:09:00 | C145: -75.98256365 | D145: -1.417788906 | E145: =$F$3*E_max_y($B$8,$B$9,$B$10,A145,$B$3,$C$3,$D$3)*E_max_x($B$8,$B$9,$B$10,A145,$B$3,$C$3,$E$3)*IG($B$8,$B$9,$B$10,A145,$B$3,$C$3,$E$3)/1000 -> 0 | G145: -75.18977741 | H145: -0.4203901651 | I145: =$F$4*E_max_y($B$8,$B$9,$B$10,A145,$B$4,$C$4,$D$4)*E_max_x($B$8,$B$9,$B$10,A145,$B$4,$C$4,$E$4)*IG($B$8,$B$9,$B$10,A145,$B$4,$C$4,$E$4)/1000 -> 0
A146: 06:10:00 | B146: 07:10:00 | C146: -75.79237025 | D146: -1.250785393 | E146: =$F$3*E_max_y($B$8,$B$9,$B$10,A146,$B$3,$C$3,$D$3)*E_max_x($B$8,$B$9,$B$10,A146,$B$3,$C$3,$E$3)*IG($B$8,$B$9,$B$10,A146,$B$3,$C$3,$E$3)/1000 -> 0 | G146: -75.00398301 | H146: -0.2856170092 | I146: =$F$4*E_max_y($B$8,$B$9,$B$10,A146,$B$4,$C$4,$D$4)*E_max_x($B$8,$B$9,$B$10,A146,$B$4,$C$4,$E$4)*IG($B$8,$B$9,$B$10,A146,$B$4,$C$4,$E$4)/1000 -> 0
A147: =A146+60/86400 -> 06:11:00 | B147: 07:11:00 | C147: -75.60208624 | D147: -1.093266563 | E147: =$F$3*E_max_y($B$8,$B$9,$B$10,A147,$B$3,$C$3,$D$3)*E_max_x($B$8,$B$9,$B$10,A147,$B$3,$C$3,$E$3)*IG($B$8,$B$9,$B$10,A147,$B$3,$C$3,$E$3)/1000 -> 0 | G147: -74.81807457 | H147: -0.1515975848 | I147: =$F$4*E_max_y($B$8,$B$9,$B$10,A147,$B$4,$C$4,$D$4)*E_max_x($B$8,$B$9,$B$10,A147,$B$4,$C$4,$E$4)*IG($B$8,$B$9,$B$10,A147,$B$4,$C$4,$E$4)/1000 -> 0
A148: 06:12:00 | B148: 07:12:00 | C148: -75.41170889 | D148: -0.9440016706 | E148: =$F$3*E_max_y($B$8,$B$9,$B$10,A148,$B$3,$C$3,$D$3)*E_max_x($B$8,$B$9,$B$10,A148,$B$3,$C$3,$E$3)*IG($B$8,$B$9,$B$10,A148,$B$3,$C$3,$E$3)/1000 -> 0 | G148: -74.63204926 | H148: -0.01762229856 | I148: =$F$4*E_max_y($B$8,$B$9,$B$10,A148,$B$4,$C$4,$D$4)*E_max_x($B$8,$B$9,$B$10,A148,$B$4,$C$4,$E$4)*IG($B$8,$B$9,$B$10,A148,$B$4,$C$4,$E$4)/1000 -> 0
A149: 06:13:00 | B149: 07:13:00 | C149: -75.22123547 | D149: -0.8014970939 | E149: =$F$3*E_max_y($B$8,$B$9,$B$10,A149,$B$3,$C$3,$D$3)*E_max_x($B$8,$B$9,$B$10,A149,$B$3,$C$3,$E$3)*IG($B$8,$B$9,$B$10,A149,$B$3,$C$3,$E$3)/1000 -> 0 | G149: -74.44590424 | H149: 0.116813009 | I149: =$F$4*E_max_y($B$8,$B$9,$B$10,A149,$B$4,$C$4,$D$4)*E_max_x($B$8,$B$9,$B$10,A149,$B$4,$C$4,$E$4)*IG($B$8,$B$9,$B$10,A149,$B$4,$C$4,$E$4)/1000 -> 0
A150: 06:14:00 | B150: 07:14:00 | C150: -75.03066325 | D150: -0.6642021737 | E150: =$F$3*E_max_y($B$8,$B$9,$B$10,A150,$B$3,$C$3,$D$3)*E_max_x($B$8,$B$9,$B$10,A150,$B$3,$C$3,$E$3)*IG($B$8,$B$9,$B$10,A150,$B$3,$C$3,$E$3)/1000 -> 0 | G150: -74.25963666 | H150: 0.2520474039 | I150: =$F$4*E_max_y($B$8,$B$9,$B$10,A150,$B$4,$C$4,$D$4)*E_max_x($B$8,$B$9,$B$10,A150,$B$4,$C$4,$E$4)*IG($B$8,$B$9,$B$10,A150,$B$4,$C$4,$E$4)/1000 -> 0
A151: 06:15:00 | B151: 07:15:00 | C151: -74.83998949 | D151: -0.5306612813 | E151: =$F$3*E_max_y($B$8,$B$9,$B$10,A151,$B$3,$C$3,$D$3)*E_max_x($B$8,$B$9,$B$10,A151,$B$3,$C$3,$E$3)*IG($B$8,$B$9,$B$10,A151,$B$3,$C$3,$E$3)/1000 -> 0 | G151: -74.0732437 | H151: 0.3882927236 | I151: =$F$4*E_max_y($B$8,$B$9,$B$10,A151,$B$4,$C$4,$D$4)*E_max_x($B$8,$B$9,$B$10,A151,$B$4,$C$4,$E$4)*IG($B$8,$B$9,$B$10,A151,$B$4,$C$4,$E$4)/1000 -> 0
A152: 06:16:00 | B152: 07:16:00 | C152: -74.6492115 | D152: -0.3996049208 | E152: =$F$3*E_max_y($B$8,$B$9,$B$10,A152,$B$3,$C$3,$D$3)*E_max_x($B$8,$B$9,$B$10,A152,$B$3,$C$3,$E$3)*IG($B$8,$B$9,$B$10,A152,$B$3,$C$3,$E$3)/1000 -> 0 | G152: -73.88672254 | H152: 0.5256660949 | I152: =$F$4*E_max_y($B$8,$B$9,$B$10,A152,$B$4,$C$4,$D$4)*E_max_x($B$8,$B$9,$B$10,A152,$B$4,$C$4,$E$4)*IG($B$8,$B$9,$B$10,A152,$B$4,$C$4,$E$4)/1000 -> 0
A153: 06:17:00 | B153: 07:17:00 | C153: -74.45832654 | D153: -0.2699883951 | E153: =$F$3*E_max_y($B$8,$B$9,$B$10,A153,$B$3,$C$3,$D$3)*E_max_x($B$8,$B$9,$B$10,A153,$B$3,$C$3,$E$3)*IG($B$8,$B$9,$B$10,A153,$B$3,$C$3,$E$3)/1000 -> 0 | G153: -73.70007035 | H153: 0.6642163123 | I153: =$F$4*E_max_y($B$8,$B$9,$B$10,A153,$B$4,$C$4,$D$4)*E_max_x($B$8,$B$9,$B$10,A153,$B$4,$C$4,$E$4)*IG($B$8,$B$9,$B$10,A153,$B$4,$C$4,$E$4)/1000 -> 0
A154: 06:18:00 | B154: 07:18:00 | C154: -74.26733192 | D154: -0.1409931433 | E154: =$F$3*E_max_y($B$8,$B$9,$B$10,A154,$B$3,$C$3,$D$3)*E_max_x($B$8,$B$9,$B$10,A154,$B$3,$C$3,$E$3)*IG($B$8,$B$9,$B$10,A154,$B$3,$C$3,$E$3)/1000 -> 0 | G154: -73.51328431 | H154: 0.8039443917 | I154: =$F$4*E_max_y($B$8,$B$9,$B$10,A154,$B$4,$C$4,$D$4)*E_max_x($B$8,$B$9,$B$10,A154,$B$4,$C$4,$E$4)*IG($B$8,$B$9,$B$10,A154,$B$4,$C$4,$E$4)/1000 -> 0
A155: 06:19:00 | B155: 07:19:00 | C155: -74.07622494 | D155: -0.01200585898 | E155: =$F$3*E_max_y($B$8,$B$9,$B$10,A155,$B$3,$C$3,$D$3)*E_max_x($B$8,$B$9,$B$10,A155,$B$3,$C$3,$E$3)*IG($B$8,$B$9,$B$10,A155,$B$3,$C$3,$E$3)/1000 -> 0 | G155: -73.32636162 | H155: 0.9448191121 | I155: =$F$4*E_max_y($B$8,$B$9,$B$10,A155,$B$4,$C$4,$D$4)*E_max_x($B$8,$B$9,$B$10,A155,$B$4,$C$4,$E$4)*IG($B$8,$B$9,$B$10,A155,$B$4,$C$4,$E$4)/1000 -> 0
A156: 06:20:00 | B156: 07:20:00 | C156: -73.88500289 | D156: 0.1174127021 | E156: =$F$3*E_max_y($B$8,$B$9,$B$10,A156,$B$3,$C$3,$D$3)*E_max_x($B$8,$B$9,$B$10,A156,$B$3,$C$3,$E$3)*IG($B$8,$B$9,$B$10,A156,$B$3,$C$3,$E$3)/1000 -> 0 | G156: -73.13929946 | H156: 1.086788483 | I156: =$F$4*E_max_y($B$8,$B$9,$B$10,A156,$B$4,$C$4,$D$4)*E_max_x($B$8,$B$9,$B$10,A156,$B$4,$C$4,$E$4)*IG($B$8,$B$9,$B$10,A156,$B$4,$C$4,$E$4)/1000 -> 0
A157: 06:21:00 | B157: 07:21:00 | C157: -73.69366309 | D157: 0.2475612724 | E157: =$F$3*E_max_y($B$8,$B$9,$B$10,A157,$B$3,$C$3,$D$3)*E_max_x($B$8,$B$9,$B$10,A157,$B$3,$C$3,$E$3)*IG($B$8,$B$9,$B$10,A157,$B$3,$C$3,$E$3)/1000 -> 0 | G157: -72.95209503 | H157: 1.229788028 | I157: =$F$4*E_max_y($B$8,$B$9,$B$10,A157,$B$4,$C$4,$D$4)*E_max_x($B$8,$B$9,$B$10,A157,$B$4,$C$4,$E$4)*IG($B$8,$B$9,$B$10,A157,$B$4,$C$4,$E$4)/1000 -> 0
A158: 06:22:00 | B158: 07:22:00 | C158: -73.50220285 | D158: 0.3786294248 | E158: =$F$3*E_max_y($B$8,$B$9,$B$10,A158,$B$3,$C$3,$D$3)*E_max_x($B$8,$B$9,$B$10,A158,$B$3,$C$3,$E$3)*IG($B$8,$B$9,$B$10,A158,$B$3,$C$3,$E$3)/1000 -> 0 | G158: -72.76474554 | H158: 1.373746653 | I158: =$F$4*E_max_y($B$8,$B$9,$B$10,A158,$B$4,$C$4,$D$4)*E_max_x($B$8,$B$9,$B$10,A158,$B$4,$C$4,$E$4)*IG($B$8,$B$9,$B$10,A158,$B$4,$C$4,$E$4)/1000 -> 0
A159: 06:23:00 | B159: 07:23:00 | C159: -73.3106195 | D159: 0.5107245995 | E159: =$F$3*E_max_y($B$8,$B$9,$B$10,A159,$B$3,$C$3,$D$3)*E_max_x($B$8,$B$9,$B$10,A159,$B$3,$C$3,$E$3)*IG($B$8,$B$9,$B$10,A159,$B$3,$C$3,$E$3)/1000 -> 0 | G159: -72.57724818 | H159: 1.518590708 | I159: =$F$4*E_max_y($B$8,$B$9,$B$10,A159,$B$4,$C$4,$D$4)*E_max_x($B$8,$B$9,$B$10,A159,$B$4,$C$4,$E$4)*IG($B$8,$B$9,$B$10,A159,$B$4,$C$4,$E$4)/1000 -> 0
A160: 06:24:00 | B160: 07:24:00 | C160: -73.11891034 | D160: 0.6438942064 | E160: =$F$3*E_max_y($B$8,$B$9,$B$10,A160,$B$3,$C$3,$D$3)*E_max_x($B$8,$B$9,$B$10,A160,$B$3,$C$3,$E$3)*IG($B$8,$B$9,$B$10,A160,$B$3,$C$3,$E$3)/1000 -> 0 | G160: -72.38960018 | H160: 1.664246736 | I160: =$F$4*E_max_y($B$8,$B$9,$B$10,A160,$B$4,$C$4,$D$4)*E_max_x($B$8,$B$9,$B$10,A160,$B$4,$C$4,$E$4)*IG($B$8,$B$9,$B$10,A160,$B$4,$C$4,$E$4)/1000 -> 0
A161: 06:25:00 | B161: 07:25:00 | C161: -72.92707273 | D161: 0.7781430325 | E161: =$F$3*E_max_y($B$8,$B$9,$B$10,A161,$B$3,$C$3,$D$3)*E_max_x($B$8,$B$9,$B$10,A161,$B$3,$C$3,$E$3)*IG($B$8,$B$9,$B$10,A161,$B$3,$C$3,$E$3)/1000 -> 0 | G161: -72.20179873 | H161: 1.810643267 | I161: =$F$4*E_max_y($B$8,$B$9,$B$10,A161,$B$4,$C$4,$D$4)*E_max_x($B$8,$B$9,$B$10,A161,$B$4,$C$4,$E$4)*IG($B$8,$B$9,$B$10,A161,$B$4,$C$4,$E$4)/1000 -> 0
A162: =A161+60/86400 -> 06:26:00 | B162: 07:26:00 | C162: -72.73510399 | D162: 0.9134465668 | E162: =$F$3*E_max_y($B$8,$B$9,$B$10,A162,$B$3,$C$3,$D$3)*E_max_x($B$8,$B$9,$B$10,A162,$B$3,$C$3,$E$3)*IG($B$8,$B$9,$B$10,A162,$B$3,$C$3,$E$3)/1000 -> 0 | G162: -72.01384108 | H162: 1.957711938 | I162: =$F$4*E_max_y($B$8,$B$9,$B$10,A162,$B$4,$C$4,$D$4)*E_max_x($B$8,$B$9,$B$10,A162,$B$4,$C$4,$E$4)*IG($B$8,$B$9,$B$10,A162,$B$4,$C$4,$E$4)/1000 -> 0
A163: 06:27:00 | B163: 07:27:00 | C163: -72.54300146 | D163: 1.04976097 | E163: =$F$3*E_max_y($B$8,$B$9,$B$10,A163,$B$3,$C$3,$D$3)*E_max_x($B$8,$B$9,$B$10,A163,$B$3,$C$3,$E$3)*IG($B$8,$B$9,$B$10,A163,$B$3,$C$3,$E$3)/1000 -> 0 | G163: -71.82572442 | H163: 2.105388133 | I163: =$F$4*E_max_y($B$8,$B$9,$B$10,A163,$B$4,$C$4,$D$4)*E_max_x($B$8,$B$9,$B$10,A163,$B$4,$C$4,$E$4)*IG($B$8,$B$9,$B$10,A163,$B$4,$C$4,$E$4)/1000 -> 0
A164: 06:28:00 | B164: 07:28:00 | C164: -72.35076249 | D164: 1.187030384 | E164: =$F$3*E_max_y($B$8,$B$9,$B$10,A164,$B$3,$C$3,$D$3)*E_max_x($B$8,$B$9,$B$10,A164,$B$3,$C$3,$E$3)*IG($B$8,$B$9,$B$10,A164,$B$3,$C$3,$E$3)/1000 -> 0 | G164: -71.637446 | H164: 2.253611302 | I164: =$F$4*E_max_y($B$8,$B$9,$B$10,A164,$B$4,$C$4,$D$4)*E_max_x($B$8,$B$9,$B$10,A164,$B$4,$C$4,$E$4)*IG($B$8,$B$9,$B$10,A164,$B$4,$C$4,$E$4)/1000 -> 0
A165: 06:29:00 | B165: 07:29:00 | C165: -72.15838443 | D165: 1.325192196 | E165: =$F$3*E_max_y($B$8,$B$9,$B$10,A165,$B$3,$C$3,$D$3)*E_max_x($B$8,$B$9,$B$10,A165,$B$3,$C$3,$E$3)*IG($B$8,$B$9,$B$10,A165,$B$3,$C$3,$E$3)/1000 -> 0 | G165: -71.44900305 | H165: 2.402325047 | I165: =$F$4*E_max_y($B$8,$B$9,$B$10,A165,$B$4,$C$4,$D$4)*E_max_x($B$8,$B$9,$B$10,A165,$B$4,$C$4,$E$4)*IG($B$8,$B$9,$B$10,A165,$B$4,$C$4,$E$4)/1000 -> 0
A166: 06:30:00 | B166: 07:30:00 | C166: -71.96586463 | D166: 1.464180752 | E166: =$F$3*E_max_y($B$8,$B$9,$B$10,A166,$B$3,$C$3,$D$3)*E_max_x($B$8,$B$9,$B$10,A166,$B$3,$C$3,$E$3)*IG($B$8,$B$9,$B$10,A166,$B$3,$C$3,$E$3)/1000 -> 0 | G166: -71.2603928 | H166: 2.551477072 | I166: =$F$4*E_max_y($B$8,$B$9,$B$10,A166,$B$4,$C$4,$D$4)*E_max_x($B$8,$B$9,$B$10,A166,$B$4,$C$4,$E$4)*IG($B$8,$B$9,$B$10,A166,$B$4,$C$4,$E$4)/1000 -> 0
A167: 06:31:00 | B167: 07:31:00 | C167: -71.77320047 | D167: 1.603929923 | E167: =$F$3*E_max_y($B$8,$B$9,$B$10,A167,$B$3,$C$3,$D$3)*E_max_x($B$8,$B$9,$B$10,A167,$B$3,$C$3,$E$3)*IG($B$8,$B$9,$B$10,A167,$B$3,$C$3,$E$3)/1000 -> 0 | G167: -71.07161249 | H167: 2.701019028 | I167: =$F$4*E_max_y($B$8,$B$9,$B$10,A167,$B$4,$C$4,$D$4)*E_max_x($B$8,$B$9,$B$10,A167,$B$4,$C$4,$E$4)*IG($B$8,$B$9,$B$10,A167,$B$4,$C$4,$E$4)/1000 -> 0
A168: 06:32:00 | B168: 07:32:00 | C168: -71.5803893 | D168: 1.744374824 | E168: =$F$3*E_max_y($B$8,$B$9,$B$10,A168,$B$3,$C$3,$D$3)*E_max_x($B$8,$B$9,$B$10,A168,$B$3,$C$3,$E$3)*IG($B$8,$B$9,$B$10,A168,$B$3,$C$3,$E$3)/1000 -> 0 | G168: -70.88265937 | H168: 2.850906309 | I168: =$F$4*E_max_y($B$8,$B$9,$B$10,A168,$B$4,$C$4,$D$4)*E_max_x($B$8,$B$9,$B$10,A168,$B$4,$C$4,$E$4)*IG($B$8,$B$9,$B$10,A168,$B$4,$C$4,$E$4)/1000 -> 0
A169: 06:33:00 | B169: 07:33:00 | C169: -71.3874285 | D169: 1.88545293 | E169: =$F$3*E_max_y($B$8,$B$9,$B$10,A169,$B$3,$C$3,$D$3)*E_max_x($B$8,$B$9,$B$10,A169,$B$3,$C$3,$E$3)*IG($B$8,$B$9,$B$10,A169,$B$3,$C$3,$E$3)/1000 -> 0 | G169: -70.69353069 | H169: 3.001097818 | I169: =$F$4*E_max_y($B$8,$B$9,$B$10,A169,$B$4,$C$4,$D$4)*E_max_x($B$8,$B$9,$B$10,A169,$B$4,$C$4,$E$4)*IG($B$8,$B$9,$B$10,A169,$B$4,$C$4,$E$4)/1000 -> 0
A170: 06:34:00 | B170: 07:34:00 | C170: -71.19431545 | D170: 2.027104749 | E170: =$F$3*E_max_y($B$8,$B$9,$B$10,A170,$B$3,$C$3,$D$3)*E_max_x($B$8,$B$9,$B$10,A170,$B$3,$C$3,$E$3)*IG($B$8,$B$9,$B$10,A170,$B$3,$C$3,$E$3)/1000 -> 0 | G170: -70.5042237 | H170: 3.151555711 | I170: =$F$4*E_max_y($B$8,$B$9,$B$10,A170,$B$4,$C$4,$D$4)*E_max_x($B$8,$B$9,$B$10,A170,$B$4,$C$4,$E$4)*IG($B$8,$B$9,$B$10,A170,$B$4,$C$4,$E$4)/1000 -> 0
A171: 06:35:00 | B171: 07:35:00 | C171: -71.00104752 | D171: 2.16927419 | E171: =$F$3*E_max_y($B$8,$B$9,$B$10,A171,$B$3,$C$3,$D$3)*E_max_x($B$8,$B$9,$B$10,A171,$B$3,$C$3,$E$3)*IG($B$8,$B$9,$B$10,A171,$B$3,$C$3,$E$3)/1000 -> 0 | G171: -70.31473567 | H171: 3.30224515 | I171: =$F$4*E_max_y($B$8,$B$9,$B$10,A171,$B$4,$C$4,$D$4)*E_max_x($B$8,$B$9,$B$10,A171,$B$4,$C$4,$E$4)*IG($B$8,$B$9,$B$10,A171,$B$4,$C$4,$E$4)/1000 -> 0
A172: 06:36:00 | B172: 07:36:00 | C172: -70.80762211 | D172: 2.311908721 | E172: =$F$3*E_max_y($B$8,$B$9,$B$10,A172,$B$3,$C$3,$D$3)*E_max_x($B$8,$B$9,$B$10,A172,$B$3,$C$3,$E$3)*IG($B$8,$B$9,$B$10,A172,$B$3,$C$3,$E$3)/1000 -> 0 | G172: -70.12506384 | H172: 3.453134059 | I172: =$F$4*E_max_y($B$8,$B$9,$B$10,A172,$B$4,$C$4,$D$4)*E_max_x($B$8,$B$9,$B$10,A172,$B$4,$C$4,$E$4)*IG($B$8,$B$9,$B$10,A172,$B$4,$C$4,$E$4)/1000 -> 0
A173: 06:37:00 | B173: 07:37:00 | C173: -70.61403661 | D173: 2.454959376 | E173: =$F$3*E_max_y($B$8,$B$9,$B$10,A173,$B$3,$C$3,$D$3)*E_max_x($B$8,$B$9,$B$10,A173,$B$3,$C$3,$E$3)*IG($B$8,$B$9,$B$10,A173,$B$3,$C$3,$E$3)/1000 -> 0 | G173: -69.9352055 | H173: 3.60419289 | I173: =$F$4*E_max_y($B$8,$B$9,$B$10,A173,$B$4,$C$4,$D$4)*E_max_x($B$8,$B$9,$B$10,A173,$B$4,$C$4,$E$4)*IG($B$8,$B$9,$B$10,A173,$B$4,$C$4,$E$4)/1000 -> 0
A174: 06:38:00 | B174: 07:38:00 | C174: -70.42028842 | D174: 2.598380669 | E174: =$F$3*E_max_y($B$8,$B$9,$B$10,A174,$B$3,$C$3,$D$3)*E_max_x($B$8,$B$9,$B$10,A174,$B$3,$C$3,$E$3)*IG($B$8,$B$9,$B$10,A174,$B$3,$C$3,$E$3)/1000 -> 0 | G174: -69.7451579 | H174: 3.755394402 | I174: =$F$4*E_max_y($B$8,$B$9,$B$10,A174,$B$4,$C$4,$D$4)*E_max_x($B$8,$B$9,$B$10,A174,$B$4,$C$4,$E$4)*IG($B$8,$B$9,$B$10,A174,$B$4,$C$4,$E$4)/1000 -> 0
A175: 06:39:00 | B175: 07:39:00 | C175: -70.22637495 | D175: 2.74213045 | E175: =$F$3*E_max_y($B$8,$B$9,$B$10,A175,$B$3,$C$3,$D$3)*E_max_x($B$8,$B$9,$B$10,A175,$B$3,$C$3,$E$3)*IG($B$8,$B$9,$B$10,A175,$B$3,$C$3,$E$3)/1000 -> 0 | G175: -69.55491834 | H175: 3.906713459 | I175: =$F$4*E_max_y($B$8,$B$9,$B$10,A175,$B$4,$C$4,$D$4)*E_max_x($B$8,$B$9,$B$10,A175,$B$4,$C$4,$E$4)*IG($B$8,$B$9,$B$10,A175,$B$4,$C$4,$E$4)/1000 -> 0
A176: 06:40:00 | B176: 07:40:00 | C176: -70.0322936 | D176: 2.88616972 | E176: =$F$3*E_max_y($B$8,$B$9,$B$10,A176,$B$3,$C$3,$D$3)*E_max_x($B$8,$B$9,$B$10,A176,$B$3,$C$3,$E$3)*IG($B$8,$B$9,$B$10,A176,$B$3,$C$3,$E$3)/1000 -> 0 | G176: -69.36448408 | H176: 4.058126841 | I176: =$F$4*E_max_y($B$8,$B$9,$B$10,A176,$B$4,$C$4,$D$4)*E_max_x($B$8,$B$9,$B$10,A176,$B$4,$C$4,$E$4)*IG($B$8,$B$9,$B$10,A176,$B$4,$C$4,$E$4)/1000 -> 0
A177: 06:41:00 | B177: 07:41:00 | C177: -69.83804178 | D177: 3.030462431 | E177: =$F$3*E_max_y($B$8,$B$9,$B$10,A177,$B$3,$C$3,$D$3)*E_max_x($B$8,$B$9,$B$10,A177,$B$3,$C$3,$E$3)*IG($B$8,$B$9,$B$10,A177,$B$3,$C$3,$E$3)/1000 -> 0 | G177: -69.17385242 | H177: 4.209613072 | I177: =$F$4*E_max_y($B$8,$B$9,$B$10,A177,$B$4,$C$4,$D$4)*E_max_x($B$8,$B$9,$B$10,A177,$B$4,$C$4,$E$4)*IG($B$8,$B$9,$B$10,A177,$B$4,$C$4,$E$4)/1000 -> 0
A178: 06:42:00 | B178: 07:42:00 | C178: -69.64361693 | D178: 3.174975275 | E178: =$F$3*E_max_y($B$8,$B$9,$B$10,A178,$B$3,$C$3,$D$3)*E_max_x($B$8,$B$9,$B$10,A178,$B$3,$C$3,$E$3)*IG($B$8,$B$9,$B$10,A178,$B$3,$C$3,$E$3)/1000 -> 0 | G178: -68.98302064 | H178: 4.361152261 | I178: =$F$4*E_max_y($B$8,$B$9,$B$10,A178,$B$4,$C$4,$D$4)*E_max_x($B$8,$B$9,$B$10,A178,$B$4,$C$4,$E$4)*IG($B$8,$B$9,$B$10,A178,$B$4,$C$4,$E$4)/1000 -> 0
A179: 06:43:00 | B179: 07:43:00 | C179: -69.44901646 | D179: 3.319677479 | E179: =$F$3*E_max_y($B$8,$B$9,$B$10,A179,$B$3,$C$3,$D$3)*E_max_x($B$8,$B$9,$B$10,A179,$B$3,$C$3,$E$3)*IG($B$8,$B$9,$B$10,A179,$B$3,$C$3,$E$3)/1000 -> 0 | G179: -68.79198603 | H179: 4.512725959 | I179: =$F$4*E_max_y($B$8,$B$9,$B$10,A179,$B$4,$C$4,$D$4)*E_max_x($B$8,$B$9,$B$10,A179,$B$4,$C$4,$E$4)*IG($B$8,$B$9,$B$10,A179,$B$4,$C$4,$E$4)/1000 -> 0
A180: 06:44:00 | B180: 07:44:00 | C180: -69.2542378 | D180: 3.464540605 | E180: =$F$3*E_max_y($B$8,$B$9,$B$10,A180,$B$3,$C$3,$D$3)*E_max_x($B$8,$B$9,$B$10,A180,$B$3,$C$3,$E$3)*IG($B$8,$B$9,$B$10,A180,$B$3,$C$3,$E$3)/1000 -> 0 | G180: -68.6007459 | H180: 4.66431703 | I180: =$F$4*E_max_y($B$8,$B$9,$B$10,A180,$B$4,$C$4,$D$4)*E_max_x($B$8,$B$9,$B$10,A180,$B$4,$C$4,$E$4)*IG($B$8,$B$9,$B$10,A180,$B$4,$C$4,$E$4)/1000 -> 0
A181: 06:45:00 | B181: 07:45:00 | C181: -69.0592784 | D181: 3.609538357 | E181: =$F$3*E_max_y($B$8,$B$9,$B$10,A181,$B$3,$C$3,$D$3)*E_max_x($B$8,$B$9,$B$10,A181,$B$3,$C$3,$E$3)*IG($B$8,$B$9,$B$10,A181,$B$3,$C$3,$E$3)/1000 -> 0 | G181: -68.40929755 | H181: 4.815909529 | I181: =$F$4*E_max_y($B$8,$B$9,$B$10,A181,$B$4,$C$4,$D$4)*E_max_x($B$8,$B$9,$B$10,A181,$B$4,$C$4,$E$4)*IG($B$8,$B$9,$B$10,A181,$B$4,$C$4,$E$4)/1000 -> 0
A182: 06:46:00 | B182: 07:46:00 | C182: -68.86413569 | D182: 3.754646401 | E182: =$F$3*E_max_y($B$8,$B$9,$B$10,A182,$B$3,$C$3,$D$3)*E_max_x($B$8,$B$9,$B$10,A182,$B$3,$C$3,$E$3)*IG($B$8,$B$9,$B$10,A182,$B$3,$C$3,$E$3)/1000 -> 0 | G182: -68.21763829 | H182: 4.967488598 | I182: =$F$4*E_max_y($B$8,$B$9,$B$10,A182,$B$4,$C$4,$D$4)*E_max_x($B$8,$B$9,$B$10,A182,$B$4,$C$4,$E$4)*IG($B$8,$B$9,$B$10,A182,$B$4,$C$4,$E$4)/1000 -> 0
A183: 06:47:00 | B183: 07:47:00 | C183: -68.66880712 | D183: 3.899842197 | E183: =$F$3*E_max_y($B$8,$B$9,$B$10,A183,$B$3,$C$3,$D$3)*E_max_x($B$8,$B$9,$B$10,A183,$B$3,$C$3,$E$3)*IG($B$8,$B$9,$B$10,A183,$B$3,$C$3,$E$3)/1000 -> 0 | G183: -68.02576542 | H183: 5.119040365 | I183: =$F$4*E_max_y($B$8,$B$9,$B$10,A183,$B$4,$C$4,$D$4)*E_max_x($B$8,$B$9,$B$10,A183,$B$4,$C$4,$E$4)*IG($B$8,$B$9,$B$10,A183,$B$4,$C$4,$E$4)/1000 -> 0
A184: 06:48:00 | B184: 07:48:00 | C184: -68.47329015 | D184: 4.045104846 | E184: =$F$3*E_max_y($B$8,$B$9,$B$10,A184,$B$3,$C$3,$D$3)*E_max_x($B$8,$B$9,$B$10,A184,$B$3,$C$3,$E$3)*IG($B$8,$B$9,$B$10,A184,$B$3,$C$3,$E$3)/1000 -> 0 | G184: -67.83367626 | H184: 5.270551862 | I184: =$F$4*E_max_y($B$8,$B$9,$B$10,A184,$B$4,$C$4,$D$4)*E_max_x($B$8,$B$9,$B$10,A184,$B$4,$C$4,$E$4)*IG($B$8,$B$9,$B$10,A184,$B$4,$C$4,$E$4)/1000 -> 0
A185: 06:49:00 | B185: 07:49:00 | C185: -68.27758223 | D185: 4.190414945 | E185: =$F$3*E_max_y($B$8,$B$9,$B$10,A185,$B$3,$C$3,$D$3)*E_max_x($B$8,$B$9,$B$10,A185,$B$3,$C$3,$E$3)*IG($B$8,$B$9,$B$10,A185,$B$3,$C$3,$E$3)/1000 -> 0 | G185: -67.64136814 | H185: 5.422010941 | I185: =$F$4*E_max_y($B$8,$B$9,$B$10,A185,$B$4,$C$4,$D$4)*E_max_x($B$8,$B$9,$B$10,A185,$B$4,$C$4,$E$4)*IG($B$8,$B$9,$B$10,A185,$B$4,$C$4,$E$4)/1000 -> 0
A186: 06:50:00 | B186: 07:50:00 | C186: -68.08168083 | D186: 4.335754459 | E186: =$F$3*E_max_y($B$8,$B$9,$B$10,A186,$B$3,$C$3,$D$3)*E_max_x($B$8,$B$9,$B$10,A186,$B$3,$C$3,$E$3)*IG($B$8,$B$9,$B$10,A186,$B$3,$C$3,$E$3)/1000 -> 0 | G186: -67.44883838 | H186: 5.573406201 | I186: =$F$4*E_max_y($B$8,$B$9,$B$10,A186,$B$4,$C$4,$D$4)*E_max_x($B$8,$B$9,$B$10,A186,$B$4,$C$4,$E$4)*IG($B$8,$B$9,$B$10,A186,$B$4,$C$4,$E$4)/1000 -> 0
A187: 06:51:00 | B187: 07:51:00 | C187: -67.88558342 | D187: 4.481106598 | E187: =$F$3*E_max_y($B$8,$B$9,$B$10,A187,$B$3,$C$3,$D$3)*E_max_x($B$8,$B$9,$B$10,A187,$B$3,$C$3,$E$3)*IG($B$8,$B$9,$B$10,A187,$B$3,$C$3,$E$3)/1000 -> 0 | G187: -67.25608432 | H187: 5.724726928 | I187: =$F$4*E_max_y($B$8,$B$9,$B$10,A187,$B$4,$C$4,$D$4)*E_max_x($B$8,$B$9,$B$10,A187,$B$4,$C$4,$E$4)*IG($B$8,$B$9,$B$10,A187,$B$4,$C$4,$E$4)/1000 -> 0
A188: 06:52:00 | B188: 07:52:00 | C188: -67.68928748 | D188: 4.62645571 | E188: =$F$3*E_max_y($B$8,$B$9,$B$10,A188,$B$3,$C$3,$D$3)*E_max_x($B$8,$B$9,$B$10,A188,$B$3,$C$3,$E$3)*IG($B$8,$B$9,$B$10,A188,$B$3,$C$3,$E$3)/1000 -> 0 | G188: -67.06310328 | H188: 5.875963033 | I188: =$F$4*E_max_y($B$8,$B$9,$B$10,A188,$B$4,$C$4,$D$4)*E_max_x($B$8,$B$9,$B$10,A188,$B$4,$C$4,$E$4)*IG($B$8,$B$9,$B$10,A188,$B$4,$C$4,$E$4)/1000 -> 0
A189: 06:53:00 | B189: 07:53:00 | C189: -67.49279048 | D189: 4.771787183 | E189: =$F$3*E_max_y($B$8,$B$9,$B$10,A189,$B$3,$C$3,$D$3)*E_max_x($B$8,$B$9,$B$10,A189,$B$3,$C$3,$E$3)*IG($B$8,$B$9,$B$10,A189,$B$3,$C$3,$E$3)/1000 -> 0 | G189: -66.86989262 | H189: 6.027104995 | I189: =$F$4*E_max_y($B$8,$B$9,$B$10,A189,$B$4,$C$4,$D$4)*E_max_x($B$8,$B$9,$B$10,A189,$B$4,$C$4,$E$4)*IG($B$8,$B$9,$B$10,A189,$B$4,$C$4,$E$4)/1000 -> 0
A190: 06:54:00 | B190: 07:54:00 | C190: -67.29608992 | D190: 4.917087352 | E190: =$F$3*E_max_y($B$8,$B$9,$B$10,A190,$B$3,$C$3,$D$3)*E_max_x($B$8,$B$9,$B$10,A190,$B$3,$C$3,$E$3)*IG($B$8,$B$9,$B$10,A190,$B$3,$C$3,$E$3)/1000 -> 0 | G190: -66.67644967 | H190: 6.178143822 | I190: =$F$4*E_max_y($B$8,$B$9,$B$10,A190,$B$4,$C$4,$D$4)*E_max_x($B$8,$B$9,$B$10,A190,$B$4,$C$4,$E$4)*IG($B$8,$B$9,$B$10,A190,$B$4,$C$4,$E$4)/1000 -> 0
A191: 06:55:00 | B191: 07:55:00 | C191: -67.09918329 | D191: 5.062343418 | E191: =$F$3*E_max_y($B$8,$B$9,$B$10,A191,$B$3,$C$3,$D$3)*E_max_x($B$8,$B$9,$B$10,A191,$B$3,$C$3,$E$3)*IG($B$8,$B$9,$B$10,A191,$B$3,$C$3,$E$3)/1000 -> 0 | G191: -66.48277178 | H191: 6.329070997 | I191: =$F$4*E_max_y($B$8,$B$9,$B$10,A191,$B$4,$C$4,$D$4)*E_max_x($B$8,$B$9,$B$10,A191,$B$4,$C$4,$E$4)*IG($B$8,$B$9,$B$10,A191,$B$4,$C$4,$E$4)/1000 -> 0
A192: 06:56:00 | B192: 07:56:00 | C192: -66.90206808 | D192: 5.207543376 | E192: =$F$3*E_max_y($B$8,$B$9,$B$10,A192,$B$3,$C$3,$D$3)*E_max_x($B$8,$B$9,$B$10,A192,$B$3,$C$3,$E$3)*IG($B$8,$B$9,$B$10,A192,$B$3,$C$3,$E$3)/1000 -> 0 | G192: -66.28885632 | H192: 6.479878446 | I192: =$F$4*E_max_y($B$8,$B$9,$B$10,A192,$B$4,$C$4,$D$4)*E_max_x($B$8,$B$9,$B$10,A192,$B$4,$C$4,$E$4)*IG($B$8,$B$9,$B$10,A192,$B$4,$C$4,$E$4)/1000 -> 0
A193: 06:57:00 | B193: 07:57:00 | C193: -66.70474181 | D193: 5.352675944 | E193: =$F$3*E_max_y($B$8,$B$9,$B$10,A193,$B$3,$C$3,$D$3)*E_max_x($B$8,$B$9,$B$10,A193,$B$3,$C$3,$E$3)*IG($B$8,$B$9,$B$10,A193,$B$3,$C$3,$E$3)/1000 -> 0 | G193: -66.09470064 | H193: 6.630558495 | I193: =$F$4*E_max_y($B$8,$B$9,$B$10,A193,$B$4,$C$4,$D$4)*E_max_x($B$8,$B$9,$B$10,A193,$B$4,$C$4,$E$4)*IG($B$8,$B$9,$B$10,A193,$B$4,$C$4,$E$4)/1000 -> 0
A194: 06:58:00 | B194: 07:58:00 | C194: -66.50720198 | D194: 5.497730502 | E194: =$F$3*E_max_y($B$8,$B$9,$B$10,A194,$B$3,$C$3,$D$3)*E_max_x($B$8,$B$9,$B$10,A194,$B$3,$C$3,$E$3)*IG($B$8,$B$9,$B$10,A194,$B$3,$C$3,$E$3)/1000 -> 0 | G194: -65.9003021 | H194: 6.781103844 | I194: =$F$4*E_max_y($B$8,$B$9,$B$10,A194,$B$4,$C$4,$D$4)*E_max_x($B$8,$B$9,$B$10,A194,$B$4,$C$4,$E$4)*IG($B$8,$B$9,$B$10,A194,$B$4,$C$4,$E$4)/1000 -> 0
A195: 06:59:00 | B195: 07:59:00 | C195: -66.30944612 | D195: 5.642697039 | E195: =$F$3*E_max_y($B$8,$B$9,$B$10,A195,$B$3,$C$3,$D$3)*E_max_x($B$8,$B$9,$B$10,A195,$B$3,$C$3,$E$3)*IG($B$8,$B$9,$B$10,A195,$B$3,$C$3,$E$3)/1000 -> 0 | G195: -65.70565809 | H195: 6.931507532 | I195: =$F$4*E_max_y($B$8,$B$9,$B$10,A195,$B$4,$C$4,$D$4)*E_max_x($B$8,$B$9,$B$10,A195,$B$4,$C$4,$E$4)*IG($B$8,$B$9,$B$10,A195,$B$4,$C$4,$E$4)/1000 -> 0
A196: 07:00:00 | B196: =A196+3600*$B$11/86400 -> 08:00:00 | C196: -66.11147174 | D196: 5.787566101 | E196: =$F$3*E_max_y($B$8,$B$9,$B$10,A196,$B$3,$C$3,$D$3)*E_max_x($B$8,$B$9,$B$10,A196,$B$3,$C$3,$E$3)*IG($B$8,$B$9,$B$10,A196,$B$3,$C$3,$E$3)/1000 -> 0 | G196: -65.51076598 | H196: 7.081762911 | I196: =$F$4*E_max_y($B$8,$B$9,$B$10,A196,$B$4,$C$4,$D$4)*E_max_x($B$8,$B$9,$B$10,A196,$B$4,$C$4,$E$4)*IG($B$8,$B$9,$B$10,A196,$B$4,$C$4,$E$4)/1000 -> 0
A197: =A196+60/86400 -> 07:01:00 | B197: =A197+3600*$B$11/86400 -> 08:01:00 | C197: -65.91327638 | D197: 5.932328741 | E197: =$F$3*E_max_y($B$8,$B$9,$B$10,A197,$B$3,$C$3,$D$3)*E_max_x($B$8,$B$9,$B$10,A197,$B$3,$C$3,$E$3)*IG($B$8,$B$9,$B$10,A197,$B$3,$C$3,$E$3)/1000 -> 0 | G197: -65.31562314 | H197: 7.231863623 | I197: =$F$4*E_max_y($B$8,$B$9,$B$10,A197,$B$4,$C$4,$D$4)*E_max_x($B$8,$B$9,$B$10,A197,$B$4,$C$4,$E$4)*IG($B$8,$B$9,$B$10,A197,$B$4,$C$4,$E$4)/1000 -> 0
A198: =A197+60/86400 -> 07:02:00 | B198: 08:02:00 | C198: -65.71485757 | D198: 6.076976485 | E198: =$F$3*E_max_y($B$8,$B$9,$B$10,A198,$B$3,$C$3,$D$3)*E_max_x($B$8,$B$9,$B$10,A198,$B$3,$C$3,$E$3)*IG($B$8,$B$9,$B$10,A198,$B$3,$C$3,$E$3)/1000 -> 0 | G198: -65.12022697 | H198: 7.381803576 | I198: =$F$4*E_max_y($B$8,$B$9,$B$10,A198,$B$4,$C$4,$D$4)*E_max_x($B$8,$B$9,$B$10,A198,$B$4,$C$4,$E$4)*IG($B$8,$B$9,$B$10,A198,$B$4,$C$4,$E$4)/1000 -> 0
A199: 07:03:00 | B199: 08:03:00 | C199: -65.51621287 | D199: 6.221501287 | E199: =$F$3*E_max_y($B$8,$B$9,$B$10,A199,$B$3,$C$3,$D$3)*E_max_x($B$8,$B$9,$B$10,A199,$B$3,$C$3,$E$3)*IG($B$8,$B$9,$B$10,A199,$B$3,$C$3,$E$3)/1000 -> 0 | G199: -64.92457486 | H199: 7.531576922 | I199: =$F$4*E_max_y($B$8,$B$9,$B$10,A199,$B$4,$C$4,$D$4)*E_max_x($B$8,$B$9,$B$10,A199,$B$4,$C$4,$E$4)*IG($B$8,$B$9,$B$10,A199,$B$4,$C$4,$E$4)/1000 -> 0
A200: 07:04:00 | B200: 08:04:00 | C200: -65.3173398 | D200: 6.365895497 | E200: =$F$3*E_max_y($B$8,$B$9,$B$10,A200,$B$3,$C$3,$D$3)*E_max_x($B$8,$B$9,$B$10,A200,$B$3,$C$3,$E$3)*IG($B$8,$B$9,$B$10,A200,$B$3,$C$3,$E$3)/1000 -> 0 | G200: -64.7286642 | H200: 7.681178039 | I200: =$F$4*E_max_y($B$8,$B$9,$B$10,A200,$B$4,$C$4,$D$4)*E_max_x($B$8,$B$9,$B$10,A200,$B$4,$C$4,$E$4)*IG($B$8,$B$9,$B$10,A200,$B$4,$C$4,$E$4)/1000 -> 0
A201: 07:05:00 | B201: 08:05:00 | C201: -65.11823594 | D201: 6.510151831 | E201: =$F$3*E_max_y($B$8,$B$9,$B$10,A201,$B$3,$C$3,$D$3)*E_max_x($B$8,$B$9,$B$10,A201,$B$3,$C$3,$E$3)*IG($B$8,$B$9,$B$10,A201,$B$3,$C$3,$E$3)/1000 -> 0 | G201: -64.53249241 | H201: 7.830601516 | I201: =$F$4*E_max_y($B$8,$B$9,$B$10,A201,$B$4,$C$4,$D$4)*E_max_x($B$8,$B$9,$B$10,A201,$B$4,$C$4,$E$4)*IG($B$8,$B$9,$B$10,A201,$B$4,$C$4,$E$4)/1000 -> 0
A202: 07:06:00 | B202: 08:06:00 | C202: -64.91889884 | D202: 6.654263339 | E202: =$F$3*E_max_y($B$8,$B$9,$B$10,A202,$B$3,$C$3,$D$3)*E_max_x($B$8,$B$9,$B$10,A202,$B$3,$C$3,$E$3)*IG($B$8,$B$9,$B$10,A202,$B$3,$C$3,$E$3)/1000 -> 0 | G202: -64.33605689 | H202: 7.979842135 | I202: =$F$4*E_max_y($B$8,$B$9,$B$10,A202,$B$4,$C$4,$D$4)*E_max_x($B$8,$B$9,$B$10,A202,$B$4,$C$4,$E$4)*IG($B$8,$B$9,$B$10,A202,$B$4,$C$4,$E$4)/1000 -> 0
A203: 07:07:00 | B203: 08:07:00 | C203: -64.71932608 | D203: 6.798223381 | E203: =$F$3*E_max_y($B$8,$B$9,$B$10,A203,$B$3,$C$3,$D$3)*E_max_x($B$8,$B$9,$B$10,A203,$B$3,$C$3,$E$3)*IG($B$8,$B$9,$B$10,A203,$B$3,$C$3,$E$3)/1000 -> 0 | G203: -64.13935506 | H203: 8.128894855 | I203: =$F$4*E_max_y($B$8,$B$9,$B$10,A203,$B$4,$C$4,$D$4)*E_max_x($B$8,$B$9,$B$10,A203,$B$4,$C$4,$E$4)*IG($B$8,$B$9,$B$10,A203,$B$4,$C$4,$E$4)/1000 -> 0
A204: 07:08:00 | B204: 08:08:00 | C204: -64.51951522 | D204: 6.942025601 | E204: =$F$3*E_max_y($B$8,$B$9,$B$10,A204,$B$3,$C$3,$D$3)*E_max_x($B$8,$B$9,$B$10,A204,$B$3,$C$3,$E$3)*IG($B$8,$B$9,$B$10,A204,$B$3,$C$3,$E$3)/1000 -> 0 | G204: -63.94238433 | H204: 8.277754801 | I204: =$F$4*E_max_y($B$8,$B$9,$B$10,A204,$B$4,$C$4,$D$4)*E_max_x($B$8,$B$9,$B$10,A204,$B$4,$C$4,$E$4)*IG($B$8,$B$9,$B$10,A204,$B$4,$C$4,$E$4)/1000 -> 0
A205: 07:09:00 | B205: 08:09:00 | C205: -64.31946386 | D205: 7.085663907 | E205: =$F$3*E_max_y($B$8,$B$9,$B$10,A205,$B$3,$C$3,$D$3)*E_max_x($B$8,$B$9,$B$10,A205,$B$3,$C$3,$E$3)*IG($B$8,$B$9,$B$10,A205,$B$3,$C$3,$E$3)/1000 -> 0 | G205: -63.74514215 | H205: 8.426417252 | I205: =$F$4*E_max_y($B$8,$B$9,$B$10,A205,$B$4,$C$4,$D$4)*E_max_x($B$8,$B$9,$B$10,A205,$B$4,$C$4,$E$4)*IG($B$8,$B$9,$B$10,A205,$B$4,$C$4,$E$4)/1000 -> 0
A206: 07:10:00 | B206: 08:10:00 | C206: -64.11916958 | D206: 7.229132451 | E206: =$F$3*E_max_y($B$8,$B$9,$B$10,A206,$B$3,$C$3,$D$3)*E_max_x($B$8,$B$9,$B$10,A206,$B$3,$C$3,$E$3)*IG($B$8,$B$9,$B$10,A206,$B$3,$C$3,$E$3)/1000 -> 0 | G206: -63.54762593 | H206: 8.574877628 | I206: =$F$4*E_max_y($B$8,$B$9,$B$10,A206,$B$4,$C$4,$D$4)*E_max_x($B$8,$B$9,$B$10,A206,$B$4,$C$4,$E$4)*IG($B$8,$B$9,$B$10,A206,$B$4,$C$4,$E$4)/1000 -> 0
... 855 more rows
